Workbook

Sheet rtr
A1: BUS_I | B1: BUS_J | C1: ID_CKT | D1: X | E1: R | F1: CTOIJ | G1: CTOJI
A2: 4404 | B2: 4800 | C2: 1 | D2: 0.0783 | E2: 0.0098 | F2: 343 | G2: 343
A3: 4330 | B3: 4827 | C3: 1 | D3: 0.022 | E3: 0.0057 | F3: 142.5 | G3: 142.5
A4: 4173 | B4: 4800 | C4: 1 | D4: 0.0918 | E4: 0 | F4: 16 | G4: 16
A5: 4800 | B5: 4827 | C5: 1 | D5: 0.0565 | E5: 0 | F5: 114 | G5: 114
A6: 4827 | B6: 4173 | C6: 1 | D6: 0.0687 | E6: 0 | F6: 16 | G6: 16
A7: 1101 | B7: 1124 | C7: 2 | D7: 0.026728 | E7: 0.004132 | F7: 396.4 | G7: 396.4
A8: 4800 | B8: 4832 | C8: 1 | D8: 0.0005 | E8: 0.0001 | F8: 343 | G8: 343
A9: 4750 | B9: 4832 | C9: 1 | D9: 0.011 | E9: 0.0014 | F9: 343 | G9: 343
A10: 4410 | B10: 4800 | C10: 1 | D10: 0.0014 | E10: 0.0002 | F10: 98 | G10: 98
A11: 4404 | B11: 4803 | C11: 1 | D11: 0.074 | E11: 0.0114 | F11: 240 | G11: 240
A12: 1133 | B12: 1444 | C12: 1 | D12: 0.052975 | E12: 0.009174 | F12: 262.9 | G12: 262.9
A13: 1102 | B13: 1105 | C13: 1 | D13: 0.04076 | E13: 0.00878 | F13: 294.5 | G13: 294.5
A14: 1102 | B14: 1106 | C14: 1 | D14: 0.00028 | E14: 5e-05 | F14: 491.6 | G14: 491.6
A15: 1102 | B15: 1106 | C15: 2 | D15: 0.00037 | E15: 0.0001 | F15: 482.8 | G15: 482.8
A16: 1102 | B16: 1111 | C16: 1 | D16: 0.00183 | E16: 0.00052 | F16: 245.8 | G16: 245.8
A17: 1103 | B17: 1141 | C17: 1 | D17: 0.00552 | E17: 0.00107 | F17: 558.5 | G17: 558.5
A18: 1103 | B18: 1141 | C18: 2 | D18: 0.00552 | E18: 0.00107 | F18: 558.5 | G18: 558.5
A19: 1106 | B19: 1109 | C19: 1 | D19: 0.03027 | E19: 0.00582 | F19: 491.6 | G19: 491.6
A20: 1106 | B20: 1132 | C20: 1 | D20: 0.01201 | E20: 0.00223 | F20: 491.6 | G20: 491.6
A21: 1107 | B21: 1108 | C21: 1 | D21: 0.01247 | E21: 0.00241 | F21: 558.5 | G21: 558.5
A22: 1107 | B22: 1109 | C22: 1 | D22: 0.00849 | E22: 0.00164 | F22: 558.5 | G22: 558.5
A23: 1108 | B23: 1444 | C23: 1 | D23: 0.05114 | E23: 0.00992 | F23: 558.5 | G23: 558.5
A24: 1108 | B24: 1444 | C24: 2 | D24: 0.05114 | E24: 0.00992 | F24: 558.5 | G24: 558.5
A25: 1110 | B25: 1119 | C25: 1 | D25: 0.03773 | E25: 0.00475 | F25: 424 | G25: 424
A26: 1113 | B26: 1115 | C26: 1 | D26: 0.03309 | E26: 0.00924 | F26: 147.5 | G26: 147.5
A27: 1114 | B27: 1115 | C27: 2 | D27: 0.08134 | E27: 0.0232 | F27: 167.6 | G27: 167.6
A28: 1114 | B28: 1122 | C28: 1 | D28: 0.05475 | E28: 0.01562 | F28: 167.6 | G28: 167.6
A29: 1115 | B29: 1122 | C29: 1 | D29: 0.02662 | E29: 0.0076 | F29: 167.6 | G29: 167.6
A30: 1120 | B30: 1121 | C30: 1 | D30: 0.02802 | E30: 0.00602 | F30: 245.8 | G30: 245.8
A31: 1126 | B31: 1129 | C31: 2 | D31: 0.00144 | E31: 0.00028 | F31: 558.5 | G31: 558.5
A32: 1132 | B32: 1219 | C32: 1 | D32: 0.02332 | E32: 0.00358 | F32: 365.54 | G32: 365.54
A33: 1141 | B33: 1444 | C33: 1 | D33: 0.02995 | E33: 0.00582 | F33: 558.5 | G33: 558.5
A34: 1141 | B34: 1444 | C34: 2 | D34: 0.02995 | E34: 0.00582 | F34: 558.5 | G34: 558.5
A35: 1141 | B35: 1845 | C35: 1 | D35: 0.02344 | E35: 0.00392 | F35: 514.7 | G35: 514.7
A36: 1141 | B36: 1845 | C36: 2 | D36: 0.02344 | E36: 0.00392 | F36: 514.7 | G36: 514.7
A37: 1151 | B37: 1240 | C37: 1 | D37: 0.13504 | E37: 0.03896 | F37: 73.7 | G37: 73.7
A38: 1151 | B38: 12177 | C38: 1 | D38: 0.07294 | E38: 0.01769 | F38: 94.4 | G38: 94.4
A39: 1151 | B39: 12204 | C39: 1 | D39: 0.01741 | E39: 0.00441 | F39: 94.4 | G39: 94.4
A40: 1151 | B40: 12205 | C40: 1 | D40: 0.01643 | E40: 0.00417 | F40: 94.41 | G40: 94.41
A41: 1151 | B41: 12241 | C41: 1 | D41: 0.14894 | E41: 0.04297 | F41: 73.7 | G41: 73.7
A42: 1153 | B42: 1408 | C42: 1 | D42: 0.28095 | E42: 0.08105 | F42: 83.8 | G42: 83.8
A43: 1154 | B43: 1204 | C43: 1 | D43: 0.06893 | E43: 0.02957 | F43: 83.8 | G43: 83.8
A44: 1154 | B44: 1204 | C44: 2 | D44: 0.06693 | E44: 0.02089 | F44: 83.8 | G44: 83.8
A45: 1154 | B45: 1204 | C45: 3 | D45: 0.06693 | E45: 0.02089 | F45: 83.8 | G45: 83.8
A46: 1154 | B46: 12080 | C46: 1 | D46: 0.0165 | E46: 0.00515 | F46: 83.8 | G46: 83.8
A47: 1154 | B47: 1159 | C47: 1 | D47: 0.01639 | E47: 0.00512 | F47: 83.8 | G47: 83.8
A48: 1154 | B48: 1163 | C48: 1 | D48: 0.00633 | E48: 0.00154 | F48: 94.41 | G48: 94.41
A49: 1154 | B49: 1425 | C49: 1 | D49: 0.28262 | E49: 0.11227 | F49: 67.2 | G49: 67.2
A50: 1159 | B50: 1331 | C50: 1 | D50: 0.12021 | E50: 0.03752 | F50: 83.8 | G50: 83.8
A51: 4122 | B51: 4403 | C51: 1 | D51: 0.0918 | E51: 0 | F51: 16 | G51: 16
A52: 4316 | B52: 4122 | C52: 1 | D52: 0.0687 | E52: 0 | F52: 16 | G52: 16
A53: 4403 | B53: 4316 | C53: 1 | D53: 0.0565 | E53: 0 | F53: 114 | G53: 114
A54: 6059 | B54: 6684 | C54: 51 | D54: 0.020902 | E54: 0.004497 | F54: 156 | G54: 156
A55: 4124 | B55: 4403 | C55: 2 | D55: 0.0918 | E55: 0 | F55: 16 | G55: 16
A56: 4316 | B56: 4124 | C56: 2 | D56: 0.0687 | E56: 0 | F56: 16 | G56: 16
A57: 4403 | B57: 4316 | C57: 2 | D57: 0.0565 | E57: 0 | F57: 114 | G57: 114
A58: 3211 | B58: 29181 | C58: 1 | D58: 0.01742 | E58: 0.002751 | F58: 317.3 | G58: 317.3
A59: 6003 | B59: 6470 | C59: 2B | D59: 0.008072 | E59: 0.002676 | F59: 225 | G59: 225
A60: 1101 | B60: 1908 | C60: 1 | D60: 0.014645 | E60: 0.001977 | F60: 453.7 | G60: 453.7
A61: 3211 | B61: 3592 | C61: 1 | D61: 0.000588 | E61: 9.3e-05 | F61: 317.3 | G61: 317.3
A62: 3301 | B62: 3592 | C62: 1 | D62: 0.020212 | E62: 0.003188 | F62: 317.3 | G62: 317.3
A63: 6008 | B63: 6520 | C63: 4A | D63: 0.064798 | E63: 0.007058 | F63: 275 | G63: 275
A64: 6182 | B64: 6520 | C64: 4B | D64: 0.037092 | E64: 0.00404 | F64: 275 | G64: 275
A65: 6008 | B65: 6520 | C65: 5A | D65: 0.064798 | E65: 0.007058 | F65: 275 | G65: 275
A66: 6182 | B66: 6520 | C66: 5B | D66: 0.037092 | E66: 0.00404 | F66: 275 | G66: 275
A67: 1732 | B67: 1710 | C67: 1 | D67: 0.068025 | E67: 0.011781 | F67: 438.2 | G67: 438.2
A68: 1407 | B68: 1736 | C68: 1 | D68: 0.066011 | E68: 0.019042 | F68: 80.1 | G68: 80.1
A69: 1730 | B69: 1444 | C69: 1 | D69: 0.079899 | E69: 0.013837 | F69: 438.2 | G69: 438.2
A70: 1427 | B70: 1735 | C70: 1 | D70: 0.020449 | E70: 0.005899 | F70: 80.1 | G70: 80.1
A71: 1526 | B71: 1732 | C71: 1 | D71: 0.4548 | E71: 0 | F71: 30.6 | G71: 30.6
A72: 1732 | B72: 1736 | C72: 1 | D72: 0.247 | E72: 0 | F72: 90 | G72: 90
A73: 1736 | B73: 1526 | C73: 1 | D73: 0.1584 | E73: 0 | F73: 30.6 | G73: 30.6
A74: 1527 | B74: 1730 | C74: 1 | D74: 0.458 | E74: 0 | F74: 30.6 | G74: 30.6
A75: 1730 | B75: 1735 | C75: 1 | D75: 0.2486 | E75: 0 | F75: 90 | G75: 90
A76: 1735 | B76: 1527 | C76: 1 | D76: 0.1598 | E76: 0 | F76: 30.6 | G76: 30.6
A77: 58150 | B77: 58200 | C77: 1 | D77: 0.028658 | E77: 0.004095 | F77: 478 | G77: 478
A78: 1122 | B78: 1174 | C78: 1 | D78: 0.020741 | E78: 0.005703 | F78: 117 | G78: 117
A79: 1131 | B79: 1174 | C79: 1 | D79: 0.013952 | E79: 0.003833 | F79: 117 | G79: 117
A80: 1427 | B80: 14002 | C80: 1 | D80: 0.335325 | E80: 0.106882 | F80: 58.6 | G80: 58.6
A81: 14002 | B81: 1718 | C81: 1 | D81: 0.172938 | E81: 0.055123 | F81: 58.6 | G81: 58.6
A82: 27371 | B82: 27501 | C82: 1 | D82: 0.048921 | E82: 0.008831 | F82: 260 | G82: 260
A83: 27381 | B83: 27501 | C83: 1 | D83: 0.000379 | E83: 6.8e-05 | F83: 260 | G83: 260
A84: 58450 | B84: 58500 | C84: 1 | D84: 0.01346 | E84: 0.00141 | F84: 562 | G84: 562
A85: 6173 | B85: 6604 | C85: 57 | D85: 0.000724 | E85: 0.000183 | F85: 93 | G85: 93
A86: 50800 | B86: 51300 | C86: 1 | D86: 0.01224 | E86: 0.001531 | F86: 508 | G86: 508
A87: 51300 | B87: 53200 | C87: 1 | D87: 0.03219 | E87: 0.005099 | F87: 464 | G87: 464
A88: 1306 | B88: 1862 | C88: 1 | D88: 0.186783 | E88: 0.059219 | F88: 73.7 | G88: 73.7
A89: 1302 | B89: 1862 | C89: 1 | D89: 0.18091 | E89: 0.057357 | F89: 73.7 | G89: 73.7
A90: 50900 | B90: 54750 | C90: 1 | D90: 0.057363 | E90: 0.010629 | F90: 389 | G90: 389
A91: 54750 | B91: 53000 | C91: 1 | D91: 0.013601 | E91: 0.002472 | F91: 389 | G91: 389
A92: 1323 | B92: 1863 | C92: 1 | D92: 0.230358 | E92: 0.07301 | F92: 73.7 | G92: 73.7
A93: 1863 | B93: 1306 | C93: 1 | D93: 0.379413 | E93: 0.120252 | F93: 73.7 | G93: 73.7
A94: 1429 | B94: 14011 | C94: 1 | D94: 0.433296 | E94: 0.137205 | F94: 58.6 | G94: 58.6
A95: 14011 | B95: 1702 | C95: 1 | D95: 0.198594 | E95: 0.062885 | F95: 58.6 | G95: 58.6
A96: 3040 | B96: 3213 | C96: 1 | D96: 0.02954 | E96: 0.00072 | F96: 151.8 | G96: 151.8
A97: 3213 | B97: 3408 | C97: 1 | D97: 0.04571 | E97: 0.00191 | F97: 151.8 | G97: 151.8
A98: 3116 | B98: 3424 | C98: 1 | D98: 0.32885 | E98: 0.14405 | F98: 47.9 | G98: 47.9
A99: 1159 | B99: 1331 | C99: 2 | D99: 0.12021 | E99: 0.03752 | F99: 83.8 | G99: 83.8
A100: 1163 | B100: 12243 | C100: 1 | D100: 0.03214 | E100: 0.0105 | F100: 62.82 | G100: 62.82
A101: 1163 | B101: 12269 | C101: 1 | D101: 0.00748 | E101: 0.00244 | F101: 83.8 | G101: 83.8
A102: 1204 | B102: 12080 | C102: 1 | D102: 0.0629 | E102: 0.02281 | F102: 74.9 | G102: 74.9
A103: 1204 | B103: 12089 | C103: 1 | D103: 0.02624 | E103: 0.0079 | F103: 83.8 | G103: 83.8
A104: 1215 | B104: 12007 | C104: 1 | D104: 0.05647 | E104: 0.01857 | F104: 94.4 | G104: 94.4
A105: 1215 | B105: 12094 | C105: 1 | D105: 0.0538 | E105: 0.02854 | F105: 58 | G105: 58
A106: 1215 | B106: 12280 | C106: 1 | D106: 0.02609 | E106: 0.00917 | F106: 74.9 | G106: 74.9
A107: 1216 | B107: 12183 | C107: 1 | D107: 0.00382 | E107: 0.0014 | F107: 74.9 | G107: 74.9
A108: 1220 | B108: 1241 | C108: 1 | D108: 0.09515 | E108: 0.05109 | F108: 51.2 | G108: 51.2
A109: 1240 | B109: 12219 | C109: 1 | D109: 0.10922 | E109: 0.03152 | F109: 73.7 | G109: 73.7
A110: 1241 | B110: 12219 | C110: 1 | D110: 0.00256 | E110: 0.00083 | F110: 73.7 | G110: 73.7
A111: 1241 | B111: 12220 | C111: 1 | D111: 0.00282 | E111: 0.00092 | F111: 73 | G111: 73
A112: 1249 | B112: 12049 | C112: 1 | D112: 0.16864 | E112: 0.05335 | F112: 83.8 | G112: 83.8
A113: 1301 | B113: 1331 | C113: 1 | D113: 0.15588 | E113: 0.04497 | F113: 83.8 | G113: 83.8
A114: 1301 | B114: 1810 | C114: 1 | D114: 0.18269 | E114: 0.05271 | F114: 83.8 | G114: 83.8
A115: 1302 | B115: 1310 | C115: 1 | D115: 0.30868 | E115: 0.24593 | F115: 35.4 | G115: 35.4
A116: 1302 | B116: 1310 | C116: 2 | D116: 0.24308 | E116: 0.07707 | F116: 73.7 | G116: 73.7
A117: 1303 | B117: 1816 | C117: 1 | D117: 0.23817 | E117: 0.06867 | F117: 73.7 | G117: 73.7
A118: 1303 | B118: 1833 | C118: 1 | D118: 0.27781 | E118: 0.08009 | F118: 73.7 | G118: 73.7
A119: 1303 | B119: 12220 | C119: 1 | D119: 0.25217 | E119: 0.07275 | F119: 73.7 | G119: 73.7
A120: 1304 | B120: 1321 | C120: 1 | D120: 0.16163 | E120: 0.04663 | F120: 83.8 | G120: 83.8
A121: 1304 | B121: 1329 | C121: 1 | D121: 0.02383 | E121: 0.00688 | F121: 83.8 | G121: 83.8
A122: 1304 | B122: 1372 | C122: 1 | D122: 0.32263 | E122: 0.09306 | F122: 83.8 | G122: 83.8
A123: 1305 | B123: 1325 | C123: 1 | D123: 0.39603 | E123: 0.11422 | F123: 83.8 | G123: 83.8
A124: 1305 | B124: 1327 | C124: 1 | D124: 0.46148 | E124: 0.13308 | F124: 83.8 | G124: 83.8
A125: 1306 | B125: 1338 | C125: 1 | D125: 0.03475 | E125: 0.01003 | F125: 73.7 | G125: 73.7
A126: 1306 | B126: 1374 | C126: 1 | D126: 0.07427 | E126: 0.02143 | F126: 73.7 | G126: 73.7
A127: 1306 | B127: 1828 | C127: 1 | D127: 0.04024 | E127: 0.0129 | F127: 73.7 | G127: 73.7
A128: 1308 | B128: 1310 | C128: 1 | D128: 0.44886 | E128: 0.35749 | F128: 35.4 | G128: 35.4
A129: 1308 | B129: 1312 | C129: 1 | D129: 0.19558 | E129: 0.15582 | F129: 35.4 | G129: 35.4
A130: 1309 | B130: 1336 | C130: 1 | D130: 0.06751 | E130: 0.01948 | F130: 73.7 | G130: 73.7
A131: 1309 | B131: 1835 | C131: 1 | D131: 0.1883 | E131: 0.05445 | F131: 73.7 | G131: 73.7
A132: 1314 | B132: 1339 | C132: 1 | D132: 0.04188 | E132: 0.01538 | F132: 70.5 | G132: 70.5
A133: 1314 | B133: 1374 | C133: 1 | D133: 0.1388 | E133: 0.04005 | F133: 73.7 | G133: 73.7
A134: 1314 | B134: 1813 | C134: 1 | D134: 0.0139 | E134: 0.00401 | F134: 83.8 | G134: 83.8
A135: 1315 | B135: 1318 | C135: 1 | D135: 0.28393 | E135: 0.08191 | F135: 83.8 | G135: 83.8
A136: 1315 | B136: 1810 | C136: 1 | D136: 0.32559 | E136: 0.09392 | F136: 83.8 | G136: 83.8
A137: 1315 | B137: 1833 | C137: 1 | D137: 0.28177 | E137: 0.08123 | F137: 73.7 | G137: 73.7
A138: 1318 | B138: 1329 | C138: 1 | D138: 0.14198 | E138: 0.04096 | F138: 83.8 | G138: 83.8
A139: 1321 | B139: 1322 | C139: 1 | D139: 0.05947 | E139: 0.01716 | F139: 83.8 | G139: 83.8
A140: 1322 | B140: 1813 | C140: 2 | D140: 0.05987 | E140: 0.01727 | F140: 83.8 | G140: 83.8
A141: 1324 | B141: 1372 | C141: 1 | D141: 0.23431 | E141: 0.0676 | F141: 83.8 | G141: 83.8
A142: 1327 | B142: 1388 | C142: 1 | D142: 0.44715 | E142: 0.1433 | F142: 83.8 | G142: 83.8
A143: 1336 | B143: 1337 | C143: 1 | D143: 0.04293 | E143: 0.01376 | F143: 73.7 | G143: 73.7
A144: 1336 | B144: 1338 | C144: 1 | D144: 0.08737 | E144: 0.02521 | F144: 73.7 | G144: 73.7
A145: 1403 | B145: 1416 | C145: 1 | D145: 0.25117 | E145: 0.07246 | F145: 83.8 | G145: 83.8
A146: 1406 | B146: 1411 | C146: 1 | D146: 0.72788 | E146: 0.57905 | F146: 35.4 | G146: 35.4
A147: 1406 | B147: 1439 | C147: 1 | D147: 0.27202 | E147: 0.07847 | F147: 83.8 | G147: 83.8
A148: 50050 | B148: 51450 | C148: 10 | D148: 0.132077 | E148: 0.017436 | F148: 345 | G148: 345
A149: 51450 | B149: 54000 | C149: 10 | D149: 0.036028 | E149: 0.004784 | F149: 345 | G149: 345
A150: 1846 | B150: 1308 | C150: 1 | D150: 0.162275 | E150: 0.051734 | F150: 58.6 | G150: 58.6
A151: 1846 | B151: 1372 | C151: 1 | D151: 0.219406 | E151: 0.069948 | F151: 58.6 | G151: 58.6
A152: 6011 | B152: 6182 | C152: 6C | D152: 0.08075 | E152: 0.01568 | F152: 280 | G152: 280
A153: 6008 | B153: 6550 | C153: 6A | D153: 0.098234 | E153: 0.017336 | F153: 247 | G153: 247
A154: 6550 | B154: 6182 | C154: 6B | D154: 0.007888 | E154: 0.001392 | F154: 247 | G154: 247
A155: 1306 | B155: 1869 | C155: 1 | D155: 0.11716 | E155: 0.033803 | F155: 66.7 | G155: 66.7
A156: 1869 | B156: 1857 | C156: 1 | D156: 0.041701 | E156: 0.012031 | F156: 66.7 | G156: 66.7
A157: 1119 | B157: 1841 | C157: 1 | D157: 0.03292 | E157: 0.00397 | F157: 438.2 | G157: 438.2
A158: 1841 | B158: 1832 | C158: 1 | D158: 0.08806 | E158: 0.01061 | F158: 438.2 | G158: 438.2
A159: 1842 | B159: 1821 | C159: 1 | D159: 0.036389 | E159: 0.010152 | F159: 147.5 | G159: 147.5
A160: 1822 | B160: 1842 | C160: 1 | D160: 0.065651 | E160: 0.018315 | F160: 147.5 | G160: 147.5
A161: 1528 | B161: 1841 | C161: 1 | D161: 0.3518 | E161: 0 | F161: 51 | G161: 51
A162: 1841 | B162: 1842 | C162: 1 | D162: 0.1238 | E162: 0 | F162: 150 | G162: 150
A163: 1842 | B163: 1528 | C163: 1 | D163: 0.2087 | E163: 0 | F163: 51 | G163: 51
A164: 12305 | B164: 12285 | C164: 1 | D164: 0.199853 | E164: 0.052216 | F164: 94.4 | G164: 94.4
A165: 12305 | B165: 12177 | C165: 1 | D165: 0.077459 | E165: 0.020144 | F165: 94.4 | G165: 94.4
A166: 1223 | B166: 1166 | C166: 1 | D166: 0.103077 | E166: 0 | F166: 78 | G166: 78
A167: 1140 | B167: 1166 | C167: 1 | D167: 0.008106 | E167: 0.001404 | F167: 438.2 | G167: 438.2
A168: 6003 | B168: 6713 | C168: 2A | D168: 0.031392 | E168: 0.00352 | F168: 275 | G168: 275
A169: 6713 | B169: 6460 | C169: 2A | D169: 0.08969 | E169: 0.01005 | F169: 275 | G169: 275
A170: 4419 | B170: 4401 | C170: 1 | D170: 0.00435 | E170: 0.00062 | F170: 414 | G170: 414
A171: 4402 | B171: 4419 | C171: 1 | D171: 0.04204 | E171: 0.0072 | F171: 225 | G171: 225
A172: 6008 | B172: 6182 | C172: 51 | D172: 0.098969 | E172: 0.011241 | F172: 500 | G172: 500
A173: 6008 | B173: 6182 | C173: 52 | D173: 0.098969 | E173: 0.011241 | F173: 500 | G173: 500
A174: 6100 | B174: 6243 | C174: 2A | D174: 0.05112 | E174: 0.01071 | F174: 225 | G174: 225
A175: 6243 | B175: 6470 | C175: 2A | D175: 0.001256 | E175: 0.000262 | F175: 225 | G175: 225
A176: 1164 | B176: 1140 | C176: 1 | D176: 0.014001 | E176: 0.001758 | F176: 370.6 | G176: 370.6
A177: 1164 | B177: 1117 | C177: 1 | D177: 0.003294 | E177: 0.000418 | F177: 370.6 | G177: 370.6
A178: 14005 | B178: 1447 | C178: 1 | D178: 0.074212 | E178: 0.021412 | F178: 83.8 | G178: 83.8
A179: 14005 | B179: 1449 | C179: 1 | D179: 0.122232 | E179: 0.035266 | F179: 83.8 | G179: 83.8
A180: 4342 | B180: 4386 | C180: 1 | D180: 0.06084 | E180: 0.01361 | F180: 133.9 | G180: 133.9
A181: 1840 | B181: 1845 | C181: 1 | D181: 0.031267 | E181: 0.005059 | F181: 482 | G181: 482
A182: 58150 | B182: 58500 | C182: 1 | D182: 0.00475 | E182: 0.000521 | F182: 573 | G182: 573
A183: 6005 | B183: 6001 | C183: 47 | D183: 0.03354 | E183: 0.00409 | F183: 500 | G183: 500
A184: 6005 | B184: 6001 | C184: 48 | D184: 0.03354 | E184: 0.00409 | F184: 500 | G184: 500
A185: 4402 | B185: 4415 | C185: 1 | D185: 0.001436 | E185: 0.000222 | F185: 60 | G185: 60
A186: 4319 | B186: 4361 | C186: 1 | D186: 0.019851 | E186: 0.004235 | F186: 133.9 | G186: 133.9
A187: 4336 | B187: 4361 | C187: 1 | D187: 0.029039 | E187: 0.006195 | F187: 133.9 | G187: 133.9
A188: 6005 | B188: 6008 | C188: 49 | D188: 0.13752 | E188: 0.01664 | F188: 500 | G188: 500
A189: 6005 | B189: 6008 | C189: 50 | D189: 0.13752 | E189: 0.01664 | F189: 500 | G189: 500
A190: 6008 | B190: 6753 | C190: 41 | D190: 0.087308 | E190: 0.017216 | F190: 382.4 | G190: 382.4
A191: 6008 | B191: 6753 | C191: 42 | D191: 0.08764 | E191: 0.018758 | F191: 382.4 | G191: 382.4
A192: 6753 | B192: 6755 | C192: 43 | D192: 0.022043 | E192: 0.004448 | F192: 382.4 | G192: 382.4
A193: 6753 | B193: 6755 | C193: 44 | D193: 0.022008 | E193: 0.004573 | F193: 382.4 | G193: 382.4
A194: 4331 | B194: 4354 | C194: 1 | D194: 0.0708 | E194: 0.01531 | F194: 133.9 | G194: 133.9
A195: 4336 | B195: 4354 | C195: 1 | D195: 0.18245 | E195: 0.03945 | F195: 133.9 | G195: 133.9
A196: 1407 | B196: 1424 | C196: 1 | D196: 0.41782 | E196: 0.12049 | F196: 73.7 | G196: 73.7
A197: 1407 | B197: 1431 | C197: 1 | D197: 0.32526 | E197: 0.10311 | F197: 73.7 | G197: 73.7
A198: 1407 | B198: 1432 | C198: 1 | D198: 0.77629 | E198: 0.2236 | F198: 73.7 | G198: 73.7
A199: 1408 | B199: 1414 | C199: 1 | D199: 0.09531 | E199: 0.0275 | F199: 83.8 | G199: 83.8
A200: 1408 | B200: 1667 | C200: 1 | D200: 0.0025 | E200: 0.0008 | F200: 83.8 | G200: 83.8
... 634 more rows

Sheet g_m
A1: Nodo | B1: Generacion | C1: Demanda
A2: 1101 | B2: =IFERROR(VLOOKUP(A2,Hoja4!$A$2:$B$163,2,0),0) -> 256.2479 | C2: =IFERROR(VLOOKUP(A2,Hoja4!$D$2:$E$166,2,0),0) -> 0
A3: 1102 | B3: =IFERROR(VLOOKUP(A3,Hoja4!$A$2:$B$163,2,0),0) -> 20.49 | C3: =IFERROR(VLOOKUP(A3,Hoja4!$D$2:$E$166,2,0),0) -> 36.238
A4: 1103 | B4: =IFERROR(VLOOKUP(A4,Hoja4!$A$2:$B$163,2,0),0) -> 0 | C4: =IFERROR(VLOOKUP(A4,Hoja4!$D$2:$E$166,2,0),0) -> 0
A5: 1105 | B5: =IFERROR(VLOOKUP(A5,Hoja4!$A$2:$B$163,2,0),0) -> 0 | C5: =IFERROR(VLOOKUP(A5,Hoja4!$D$2:$E$166,2,0),0) -> 0
A6: 1106 | B6: =IFERROR(VLOOKUP(A6,Hoja4!$A$2:$B$163,2,0),0) -> 0 | C6: =IFERROR(VLOOKUP(A6,Hoja4!$D$2:$E$166,2,0),0) -> 36.291
A7: 1107 | B7: =IFERROR(VLOOKUP(A7,Hoja4!$A$2:$B$163,2,0),0) -> 0 | C7: =IFERROR(VLOOKUP(A7,Hoja4!$D$2:$E$166,2,0),0) -> 143.105
A8: 1108 | B8: =IFERROR(VLOOKUP(A8,Hoja4!$A$2:$B$163,2,0),0) -> 0 | C8: =IFERROR(VLOOKUP(A8,Hoja4!$D$2:$E$166,2,0),0) -> 155.583
A9: 1109 | B9: =IFERROR(VLOOKUP(A9,Hoja4!$A$2:$B$163,2,0),0) -> 0 | C9: =IFERROR(VLOOKUP(A9,Hoja4!$D$2:$E$166,2,0),0) -> 207.281
A10: 1110 | B10: =IFERROR(VLOOKUP(A10,Hoja4!$A$2:$B$163,2,0),0) -> 0 | C10: =IFERROR(VLOOKUP(A10,Hoja4!$D$2:$E$166,2,0),0) -> 0
A11: 1111 | B11: =IFERROR(VLOOKUP(A11,Hoja4!$A$2:$B$163,2,0),0) -> 0 | C11: =IFERROR(VLOOKUP(A11,Hoja4!$D$2:$E$166,2,0),0) -> 0
A12: 1113 | B12: =IFERROR(VLOOKUP(A12,Hoja4!$A$2:$B$163,2,0),0) -> 0 | C12: =IFERROR(VLOOKUP(A12,Hoja4!$D$2:$E$166,2,0),0) -> 0
A13: 1114 | B13: =IFERROR(VLOOKUP(A13,Hoja4!$A$2:$B$163,2,0),0) -> 0 | C13: =IFERROR(VLOOKUP(A13,Hoja4!$D$2:$E$166,2,0),0) -> 0
A14: 1115 | B14: =IFERROR(VLOOKUP(A14,Hoja4!$A$2:$B$163,2,0),0) -> 0 | C14: =IFERROR(VLOOKUP(A14,Hoja4!$D$2:$E$166,2,0),0) -> 0
A15: 1117 | B15: =IFERROR(VLOOKUP(A15,Hoja4!$A$2:$B$163,2,0),0) -> 0 | C15: =IFERROR(VLOOKUP(A15,Hoja4!$D$2:$E$166,2,0),0) -> 0
A16: 1119 | B16: =IFERROR(VLOOKUP(A16,Hoja4!$A$2:$B$163,2,0),0) -> 0 | C16: =IFERROR(VLOOKUP(A16,Hoja4!$D$2:$E$166,2,0),0) -> 0
A17: 1120 | B17: =IFERROR(VLOOKUP(A17,Hoja4!$A$2:$B$163,2,0),0) -> 17.418 | C17: =IFERROR(VLOOKUP(A17,Hoja4!$D$2:$E$166,2,0),0) -> 0
A18: 1121 | B18: =IFERROR(VLOOKUP(A18,Hoja4!$A$2:$B$163,2,0),0) -> 0 | C18: =IFERROR(VLOOKUP(A18,Hoja4!$D$2:$E$166,2,0),0) -> 0
A19: 1122 | B19: =IFERROR(VLOOKUP(A19,Hoja4!$A$2:$B$163,2,0),0) -> 0 | C19: =IFERROR(VLOOKUP(A19,Hoja4!$D$2:$E$166,2,0),0) -> 0
A20: 1124 | B20: =IFERROR(VLOOKUP(A20,Hoja4!$A$2:$B$163,2,0),0) -> 0 | C20: =IFERROR(VLOOKUP(A20,Hoja4!$D$2:$E$166,2,0),0) -> 35.914
A21: 1126 | B21: =IFERROR(VLOOKUP(A21,Hoja4!$A$2:$B$163,2,0),0) -> 0 | C21: =IFERROR(VLOOKUP(A21,Hoja4!$D$2:$E$166,2,0),0) -> 50.213
A22: 1128 | B22: =IFERROR(VLOOKUP(A22,Hoja4!$A$2:$B$163,2,0),0) -> 0 | C22: =IFERROR(VLOOKUP(A22,Hoja4!$D$2:$E$166,2,0),0) -> 0
A23: 1129 | B23: =IFERROR(VLOOKUP(A23,Hoja4!$A$2:$B$163,2,0),0) -> 0 | C23: =IFERROR(VLOOKUP(A23,Hoja4!$D$2:$E$166,2,0),0) -> 0
A24: 1131 | B24: =IFERROR(VLOOKUP(A24,Hoja4!$A$2:$B$163,2,0),0) -> 0 | C24: =IFERROR(VLOOKUP(A24,Hoja4!$D$2:$E$166,2,0),0) -> 0
A25: 1132 | B25: =IFERROR(VLOOKUP(A25,Hoja4!$A$2:$B$163,2,0),0) -> 0 | C25: =IFERROR(VLOOKUP(A25,Hoja4!$D$2:$E$166,2,0),0) -> 0
A26: 1133 | B26: =IFERROR(VLOOKUP(A26,Hoja4!$A$2:$B$163,2,0),0) -> 0 | C26: =IFERROR(VLOOKUP(A26,Hoja4!$D$2:$E$166,2,0),0) -> 19.166
A27: 1140 | B27: =IFERROR(VLOOKUP(A27,Hoja4!$A$2:$B$163,2,0),0) -> 127.8661 | C27: =IFERROR(VLOOKUP(A27,Hoja4!$D$2:$E$166,2,0),0) -> 35.988
A28: 1141 | B28: =IFERROR(VLOOKUP(A28,Hoja4!$A$2:$B$163,2,0),0) -> 228.58 | C28: =IFERROR(VLOOKUP(A28,Hoja4!$D$2:$E$166,2,0),0) -> 0
A29: 1145 | B29: =IFERROR(VLOOKUP(A29,Hoja4!$A$2:$B$163,2,0),0) -> 8.8626 | C29: =IFERROR(VLOOKUP(A29,Hoja4!$D$2:$E$166,2,0),0) -> 0
A30: 1151 | B30: =IFERROR(VLOOKUP(A30,Hoja4!$A$2:$B$163,2,0),0) -> 0 | C30: =IFERROR(VLOOKUP(A30,Hoja4!$D$2:$E$166,2,0),0) -> 0
A31: 1153 | B31: =IFERROR(VLOOKUP(A31,Hoja4!$A$2:$B$163,2,0),0) -> 0 | C31: =IFERROR(VLOOKUP(A31,Hoja4!$D$2:$E$166,2,0),0) -> 0
A32: 1154 | B32: =IFERROR(VLOOKUP(A32,Hoja4!$A$2:$B$163,2,0),0) -> 0 | C32: =IFERROR(VLOOKUP(A32,Hoja4!$D$2:$E$166,2,0),0) -> 0
A33: 1155 | B33: =IFERROR(VLOOKUP(A33,Hoja4!$A$2:$B$163,2,0),0) -> 0 | C33: =IFERROR(VLOOKUP(A33,Hoja4!$D$2:$E$166,2,0),0) -> 0
A34: 1159 | B34: =IFERROR(VLOOKUP(A34,Hoja4!$A$2:$B$163,2,0),0) -> 0 | C34: =IFERROR(VLOOKUP(A34,Hoja4!$D$2:$E$166,2,0),0) -> 0
A35: 1163 | B35: =IFERROR(VLOOKUP(A35,Hoja4!$A$2:$B$163,2,0),0) -> 0 | C35: =IFERROR(VLOOKUP(A35,Hoja4!$D$2:$E$166,2,0),0) -> 0
A36: 1164 | B36: =IFERROR(VLOOKUP(A36,Hoja4!$A$2:$B$163,2,0),0) -> 0 | C36: =IFERROR(VLOOKUP(A36,Hoja4!$D$2:$E$166,2,0),0) -> 0
A37: 1165 | B37: =IFERROR(VLOOKUP(A37,Hoja4!$A$2:$B$163,2,0),0) -> 49.568 | C37: =IFERROR(VLOOKUP(A37,Hoja4!$D$2:$E$166,2,0),0) -> 0
A38: 1166 | B38: =IFERROR(VLOOKUP(A38,Hoja4!$A$2:$B$163,2,0),0) -> 0 | C38: =IFERROR(VLOOKUP(A38,Hoja4!$D$2:$E$166,2,0),0) -> 0
A39: 1168 | B39: =IFERROR(VLOOKUP(A39,Hoja4!$A$2:$B$163,2,0),0) -> 47.957 | C39: =IFERROR(VLOOKUP(A39,Hoja4!$D$2:$E$166,2,0),0) -> 0
A40: 1169 | B40: =IFERROR(VLOOKUP(A40,Hoja4!$A$2:$B$163,2,0),0) -> 0 | C40: =IFERROR(VLOOKUP(A40,Hoja4!$D$2:$E$166,2,0),0) -> 0
A41: 1170 | B41: =IFERROR(VLOOKUP(A41,Hoja4!$A$2:$B$163,2,0),0) -> 2.1194 | C41: =IFERROR(VLOOKUP(A41,Hoja4!$D$2:$E$166,2,0),0) -> 0
A42: 1174 | B42: =IFERROR(VLOOKUP(A42,Hoja4!$A$2:$B$163,2,0),0) -> 0 | C42: =IFERROR(VLOOKUP(A42,Hoja4!$D$2:$E$166,2,0),0) -> 0
A43: 1204 | B43: =IFERROR(VLOOKUP(A43,Hoja4!$A$2:$B$163,2,0),0) -> 0 | C43: =IFERROR(VLOOKUP(A43,Hoja4!$D$2:$E$166,2,0),0) -> 0
A44: 1206 | B44: =IFERROR(VLOOKUP(A44,Hoja4!$A$2:$B$163,2,0),0) -> 0 | C44: =IFERROR(VLOOKUP(A44,Hoja4!$D$2:$E$166,2,0),0) -> 0
A45: 1207 | B45: =IFERROR(VLOOKUP(A45,Hoja4!$A$2:$B$163,2,0),0) -> 0 | C45: =IFERROR(VLOOKUP(A45,Hoja4!$D$2:$E$166,2,0),0) -> 0
A46: 1215 | B46: =IFERROR(VLOOKUP(A46,Hoja4!$A$2:$B$163,2,0),0) -> 0 | C46: =IFERROR(VLOOKUP(A46,Hoja4!$D$2:$E$166,2,0),0) -> 0
A47: 1216 | B47: =IFERROR(VLOOKUP(A47,Hoja4!$A$2:$B$163,2,0),0) -> 0 | C47: =IFERROR(VLOOKUP(A47,Hoja4!$D$2:$E$166,2,0),0) -> 0
A48: 1217 | B48: =IFERROR(VLOOKUP(A48,Hoja4!$A$2:$B$163,2,0),0) -> 0 | C48: =IFERROR(VLOOKUP(A48,Hoja4!$D$2:$E$166,2,0),0) -> 0
A49: 1218 | B49: =IFERROR(VLOOKUP(A49,Hoja4!$A$2:$B$163,2,0),0) -> 0 | C49: =IFERROR(VLOOKUP(A49,Hoja4!$D$2:$E$166,2,0),0) -> 0
A50: 1219 | B50: =IFERROR(VLOOKUP(A50,Hoja4!$A$2:$B$163,2,0),0) -> 68.571 | C50: =IFERROR(VLOOKUP(A50,Hoja4!$D$2:$E$166,2,0),0) -> 0
A51: 1220 | B51: =IFERROR(VLOOKUP(A51,Hoja4!$A$2:$B$163,2,0),0) -> 0 | C51: =IFERROR(VLOOKUP(A51,Hoja4!$D$2:$E$166,2,0),0) -> 0
A52: 1223 | B52: =IFERROR(VLOOKUP(A52,Hoja4!$A$2:$B$163,2,0),0) -> 0 | C52: =IFERROR(VLOOKUP(A52,Hoja4!$D$2:$E$166,2,0),0) -> 0
A53: 1240 | B53: =IFERROR(VLOOKUP(A53,Hoja4!$A$2:$B$163,2,0),0) -> 0 | C53: =IFERROR(VLOOKUP(A53,Hoja4!$D$2:$E$166,2,0),0) -> 0
A54: 1241 | B54: =IFERROR(VLOOKUP(A54,Hoja4!$A$2:$B$163,2,0),0) -> 0 | C54: =IFERROR(VLOOKUP(A54,Hoja4!$D$2:$E$166,2,0),0) -> 0
A55: 1249 | B55: =IFERROR(VLOOKUP(A55,Hoja4!$A$2:$B$163,2,0),0) -> 0 | C55: =IFERROR(VLOOKUP(A55,Hoja4!$D$2:$E$166,2,0),0) -> 0
A56: 1251 | B56: =IFERROR(VLOOKUP(A56,Hoja4!$A$2:$B$163,2,0),0) -> 0 | C56: =IFERROR(VLOOKUP(A56,Hoja4!$D$2:$E$166,2,0),0) -> 0
A57: 1301 | B57: =IFERROR(VLOOKUP(A57,Hoja4!$A$2:$B$163,2,0),0) -> 0 | C57: =IFERROR(VLOOKUP(A57,Hoja4!$D$2:$E$166,2,0),0) -> 0
A58: 1302 | B58: =IFERROR(VLOOKUP(A58,Hoja4!$A$2:$B$163,2,0),0) -> 0 | C58: =IFERROR(VLOOKUP(A58,Hoja4!$D$2:$E$166,2,0),0) -> 0
A59: 1303 | B59: =IFERROR(VLOOKUP(A59,Hoja4!$A$2:$B$163,2,0),0) -> 0 | C59: =IFERROR(VLOOKUP(A59,Hoja4!$D$2:$E$166,2,0),0) -> 0
A60: 1304 | B60: =IFERROR(VLOOKUP(A60,Hoja4!$A$2:$B$163,2,0),0) -> 0 | C60: =IFERROR(VLOOKUP(A60,Hoja4!$D$2:$E$166,2,0),0) -> 0
A61: 1305 | B61: =IFERROR(VLOOKUP(A61,Hoja4!$A$2:$B$163,2,0),0) -> 0 | C61: =IFERROR(VLOOKUP(A61,Hoja4!$D$2:$E$166,2,0),0) -> 0
A62: 1306 | B62: =IFERROR(VLOOKUP(A62,Hoja4!$A$2:$B$163,2,0),0) -> 0 | C62: =IFERROR(VLOOKUP(A62,Hoja4!$D$2:$E$166,2,0),0) -> 0
A63: 1308 | B63: =IFERROR(VLOOKUP(A63,Hoja4!$A$2:$B$163,2,0),0) -> 0 | C63: =IFERROR(VLOOKUP(A63,Hoja4!$D$2:$E$166,2,0),0) -> 0
A64: 1309 | B64: =IFERROR(VLOOKUP(A64,Hoja4!$A$2:$B$163,2,0),0) -> 0 | C64: =IFERROR(VLOOKUP(A64,Hoja4!$D$2:$E$166,2,0),0) -> 0
A65: 1310 | B65: =IFERROR(VLOOKUP(A65,Hoja4!$A$2:$B$163,2,0),0) -> 0 | C65: =IFERROR(VLOOKUP(A65,Hoja4!$D$2:$E$166,2,0),0) -> 0
A66: 1312 | B66: =IFERROR(VLOOKUP(A66,Hoja4!$A$2:$B$163,2,0),0) -> 0 | C66: =IFERROR(VLOOKUP(A66,Hoja4!$D$2:$E$166,2,0),0) -> 0
A67: 1314 | B67: =IFERROR(VLOOKUP(A67,Hoja4!$A$2:$B$163,2,0),0) -> 0 | C67: =IFERROR(VLOOKUP(A67,Hoja4!$D$2:$E$166,2,0),0) -> 0
A68: 1315 | B68: =IFERROR(VLOOKUP(A68,Hoja4!$A$2:$B$163,2,0),0) -> 0 | C68: =IFERROR(VLOOKUP(A68,Hoja4!$D$2:$E$166,2,0),0) -> 0
A69: 1318 | B69: =IFERROR(VLOOKUP(A69,Hoja4!$A$2:$B$163,2,0),0) -> 0 | C69: =IFERROR(VLOOKUP(A69,Hoja4!$D$2:$E$166,2,0),0) -> 0
A70: 1321 | B70: =IFERROR(VLOOKUP(A70,Hoja4!$A$2:$B$163,2,0),0) -> 0 | C70: =IFERROR(VLOOKUP(A70,Hoja4!$D$2:$E$166,2,0),0) -> 0
A71: 1322 | B71: =IFERROR(VLOOKUP(A71,Hoja4!$A$2:$B$163,2,0),0) -> 0 | C71: =IFERROR(VLOOKUP(A71,Hoja4!$D$2:$E$166,2,0),0) -> 0
A72: 1323 | B72: =IFERROR(VLOOKUP(A72,Hoja4!$A$2:$B$163,2,0),0) -> 0 | C72: =IFERROR(VLOOKUP(A72,Hoja4!$D$2:$E$166,2,0),0) -> 0
A73: 1324 | B73: =IFERROR(VLOOKUP(A73,Hoja4!$A$2:$B$163,2,0),0) -> 0 | C73: =IFERROR(VLOOKUP(A73,Hoja4!$D$2:$E$166,2,0),0) -> 0
A74: 1325 | B74: =IFERROR(VLOOKUP(A74,Hoja4!$A$2:$B$163,2,0),0) -> 0 | C74: =IFERROR(VLOOKUP(A74,Hoja4!$D$2:$E$166,2,0),0) -> 0
A75: 1327 | B75: =IFERROR(VLOOKUP(A75,Hoja4!$A$2:$B$163,2,0),0) -> 0 | C75: =IFERROR(VLOOKUP(A75,Hoja4!$D$2:$E$166,2,0),0) -> 0
A76: 1329 | B76: =IFERROR(VLOOKUP(A76,Hoja4!$A$2:$B$163,2,0),0) -> 0 | C76: =IFERROR(VLOOKUP(A76,Hoja4!$D$2:$E$166,2,0),0) -> 0
A77: 1331 | B77: =IFERROR(VLOOKUP(A77,Hoja4!$A$2:$B$163,2,0),0) -> 0 | C77: =IFERROR(VLOOKUP(A77,Hoja4!$D$2:$E$166,2,0),0) -> 0
A78: 1336 | B78: =IFERROR(VLOOKUP(A78,Hoja4!$A$2:$B$163,2,0),0) -> 0 | C78: =IFERROR(VLOOKUP(A78,Hoja4!$D$2:$E$166,2,0),0) -> 0
A79: 1337 | B79: =IFERROR(VLOOKUP(A79,Hoja4!$A$2:$B$163,2,0),0) -> 0 | C79: =IFERROR(VLOOKUP(A79,Hoja4!$D$2:$E$166,2,0),0) -> 0
A80: 1338 | B80: =IFERROR(VLOOKUP(A80,Hoja4!$A$2:$B$163,2,0),0) -> 0 | C80: =IFERROR(VLOOKUP(A80,Hoja4!$D$2:$E$166,2,0),0) -> 0
A81: 1339 | B81: =IFERROR(VLOOKUP(A81,Hoja4!$A$2:$B$163,2,0),0) -> 0 | C81: =IFERROR(VLOOKUP(A81,Hoja4!$D$2:$E$166,2,0),0) -> 0
A82: 1372 | B82: =IFERROR(VLOOKUP(A82,Hoja4!$A$2:$B$163,2,0),0) -> 0 | C82: =IFERROR(VLOOKUP(A82,Hoja4!$D$2:$E$166,2,0),0) -> 0
A83: 1374 | B83: =IFERROR(VLOOKUP(A83,Hoja4!$A$2:$B$163,2,0),0) -> 0 | C83: =IFERROR(VLOOKUP(A83,Hoja4!$D$2:$E$166,2,0),0) -> 0
A84: 1388 | B84: =IFERROR(VLOOKUP(A84,Hoja4!$A$2:$B$163,2,0),0) -> 0 | C84: =IFERROR(VLOOKUP(A84,Hoja4!$D$2:$E$166,2,0),0) -> 0
A85: 1403 | B85: =IFERROR(VLOOKUP(A85,Hoja4!$A$2:$B$163,2,0),0) -> 0 | C85: =IFERROR(VLOOKUP(A85,Hoja4!$D$2:$E$166,2,0),0) -> 0
A86: 1406 | B86: =IFERROR(VLOOKUP(A86,Hoja4!$A$2:$B$163,2,0),0) -> 0 | C86: =IFERROR(VLOOKUP(A86,Hoja4!$D$2:$E$166,2,0),0) -> 0
A87: 1407 | B87: =IFERROR(VLOOKUP(A87,Hoja4!$A$2:$B$163,2,0),0) -> 0 | C87: =IFERROR(VLOOKUP(A87,Hoja4!$D$2:$E$166,2,0),0) -> 0
A88: 1408 | B88: =IFERROR(VLOOKUP(A88,Hoja4!$A$2:$B$163,2,0),0) -> 0 | C88: =IFERROR(VLOOKUP(A88,Hoja4!$D$2:$E$166,2,0),0) -> 0
A89: 1409 | B89: =IFERROR(VLOOKUP(A89,Hoja4!$A$2:$B$163,2,0),0) -> 0 | C89: =IFERROR(VLOOKUP(A89,Hoja4!$D$2:$E$166,2,0),0) -> 0
A90: 1411 | B90: =IFERROR(VLOOKUP(A90,Hoja4!$A$2:$B$163,2,0),0) -> 0 | C90: =IFERROR(VLOOKUP(A90,Hoja4!$D$2:$E$166,2,0),0) -> 0
A91: 1414 | B91: =IFERROR(VLOOKUP(A91,Hoja4!$A$2:$B$163,2,0),0) -> 0 | C91: =IFERROR(VLOOKUP(A91,Hoja4!$D$2:$E$166,2,0),0) -> 0
A92: 1415 | B92: =IFERROR(VLOOKUP(A92,Hoja4!$A$2:$B$163,2,0),0) -> 0 | C92: =IFERROR(VLOOKUP(A92,Hoja4!$D$2:$E$166,2,0),0) -> 0
A93: 1416 | B93: =IFERROR(VLOOKUP(A93,Hoja4!$A$2:$B$163,2,0),0) -> 0 | C93: =IFERROR(VLOOKUP(A93,Hoja4!$D$2:$E$166,2,0),0) -> 0
A94: 1417 | B94: =IFERROR(VLOOKUP(A94,Hoja4!$A$2:$B$163,2,0),0) -> 0 | C94: =IFERROR(VLOOKUP(A94,Hoja4!$D$2:$E$166,2,0),0) -> 0
A95: 1418 | B95: =IFERROR(VLOOKUP(A95,Hoja4!$A$2:$B$163,2,0),0) -> 0 | C95: =IFERROR(VLOOKUP(A95,Hoja4!$D$2:$E$166,2,0),0) -> 0
A96: 1422 | B96: =IFERROR(VLOOKUP(A96,Hoja4!$A$2:$B$163,2,0),0) -> 0 | C96: =IFERROR(VLOOKUP(A96,Hoja4!$D$2:$E$166,2,0),0) -> 0
A97: 1423 | B97: =IFERROR(VLOOKUP(A97,Hoja4!$A$2:$B$163,2,0),0) -> 0 | C97: =IFERROR(VLOOKUP(A97,Hoja4!$D$2:$E$166,2,0),0) -> 0
A98: 1424 | B98: =IFERROR(VLOOKUP(A98,Hoja4!$A$2:$B$163,2,0),0) -> 0 | C98: =IFERROR(VLOOKUP(A98,Hoja4!$D$2:$E$166,2,0),0) -> 0
A99: 1425 | B99: =IFERROR(VLOOKUP(A99,Hoja4!$A$2:$B$163,2,0),0) -> 0 | C99: =IFERROR(VLOOKUP(A99,Hoja4!$D$2:$E$166,2,0),0) -> 0
A100: 1427 | B100: =IFERROR(VLOOKUP(A100,Hoja4!$A$2:$B$163,2,0),0) -> 0 | C100: =IFERROR(VLOOKUP(A100,Hoja4!$D$2:$E$166,2,0),0) -> 0
A101: 1428 | B101: =IFERROR(VLOOKUP(A101,Hoja4!$A$2:$B$163,2,0),0) -> 0 | C101: =IFERROR(VLOOKUP(A101,Hoja4!$D$2:$E$166,2,0),0) -> 0
A102: 1429 | B102: =IFERROR(VLOOKUP(A102,Hoja4!$A$2:$B$163,2,0),0) -> 0 | C102: =IFERROR(VLOOKUP(A102,Hoja4!$D$2:$E$166,2,0),0) -> 0
A103: 1431 | B103: =IFERROR(VLOOKUP(A103,Hoja4!$A$2:$B$163,2,0),0) -> 0 | C103: =IFERROR(VLOOKUP(A103,Hoja4!$D$2:$E$166,2,0),0) -> 0
A104: 1432 | B104: =IFERROR(VLOOKUP(A104,Hoja4!$A$2:$B$163,2,0),0) -> 0 | C104: =IFERROR(VLOOKUP(A104,Hoja4!$D$2:$E$166,2,0),0) -> 0
A105: 1433 | B105: =IFERROR(VLOOKUP(A105,Hoja4!$A$2:$B$163,2,0),0) -> 0 | C105: =IFERROR(VLOOKUP(A105,Hoja4!$D$2:$E$166,2,0),0) -> 0
A106: 1434 | B106: =IFERROR(VLOOKUP(A106,Hoja4!$A$2:$B$163,2,0),0) -> 0 | C106: =IFERROR(VLOOKUP(A106,Hoja4!$D$2:$E$166,2,0),0) -> 0
A107: 1435 | B107: =IFERROR(VLOOKUP(A107,Hoja4!$A$2:$B$163,2,0),0) -> 0 | C107: =IFERROR(VLOOKUP(A107,Hoja4!$D$2:$E$166,2,0),0) -> 0
A108: 1439 | B108: =IFERROR(VLOOKUP(A108,Hoja4!$A$2:$B$163,2,0),0) -> 0 | C108: =IFERROR(VLOOKUP(A108,Hoja4!$D$2:$E$166,2,0),0) -> 0
A109: 1442 | B109: =IFERROR(VLOOKUP(A109,Hoja4!$A$2:$B$163,2,0),0) -> 0 | C109: =IFERROR(VLOOKUP(A109,Hoja4!$D$2:$E$166,2,0),0) -> 0
A110: 1444 | B110: =IFERROR(VLOOKUP(A110,Hoja4!$A$2:$B$163,2,0),0) -> 33.241 | C110: =IFERROR(VLOOKUP(A110,Hoja4!$D$2:$E$166,2,0),0) -> 21.9
A111: 1445 | B111: =IFERROR(VLOOKUP(A111,Hoja4!$A$2:$B$163,2,0),0) -> 0 | C111: =IFERROR(VLOOKUP(A111,Hoja4!$D$2:$E$166,2,0),0) -> 0
A112: 1447 | B112: =IFERROR(VLOOKUP(A112,Hoja4!$A$2:$B$163,2,0),0) -> 0 | C112: =IFERROR(VLOOKUP(A112,Hoja4!$D$2:$E$166,2,0),0) -> 0
A113: 1449 | B113: =IFERROR(VLOOKUP(A113,Hoja4!$A$2:$B$163,2,0),0) -> 0 | C113: =IFERROR(VLOOKUP(A113,Hoja4!$D$2:$E$166,2,0),0) -> 0
A114: 1490 | B114: =IFERROR(VLOOKUP(A114,Hoja4!$A$2:$B$163,2,0),0) -> 0 | C114: =IFERROR(VLOOKUP(A114,Hoja4!$D$2:$E$166,2,0),0) -> 0
A115: 1491 | B115: =IFERROR(VLOOKUP(A115,Hoja4!$A$2:$B$163,2,0),0) -> 0 | C115: =IFERROR(VLOOKUP(A115,Hoja4!$D$2:$E$166,2,0),0) -> 0
A116: 1492 | B116: =IFERROR(VLOOKUP(A116,Hoja4!$A$2:$B$163,2,0),0) -> 0 | C116: =IFERROR(VLOOKUP(A116,Hoja4!$D$2:$E$166,2,0),0) -> 0
A117: 1493 | B117: =IFERROR(VLOOKUP(A117,Hoja4!$A$2:$B$163,2,0),0) -> 0 | C117: =IFERROR(VLOOKUP(A117,Hoja4!$D$2:$E$166,2,0),0) -> 0
A118: 1495 | B118: =IFERROR(VLOOKUP(A118,Hoja4!$A$2:$B$163,2,0),0) -> 0 | C118: =IFERROR(VLOOKUP(A118,Hoja4!$D$2:$E$166,2,0),0) -> 0
A119: 1497 | B119: =IFERROR(VLOOKUP(A119,Hoja4!$A$2:$B$163,2,0),0) -> 0 | C119: =IFERROR(VLOOKUP(A119,Hoja4!$D$2:$E$166,2,0),0) -> 0
A120: 1498 | B120: =IFERROR(VLOOKUP(A120,Hoja4!$A$2:$B$163,2,0),0) -> 0 | C120: =IFERROR(VLOOKUP(A120,Hoja4!$D$2:$E$166,2,0),0) -> 0
A121: 1499 | B121: =IFERROR(VLOOKUP(A121,Hoja4!$A$2:$B$163,2,0),0) -> 0 | C121: =IFERROR(VLOOKUP(A121,Hoja4!$D$2:$E$166,2,0),0) -> 0
A122: 1501 | B122: =IFERROR(VLOOKUP(A122,Hoja4!$A$2:$B$163,2,0),0) -> 0 | C122: =IFERROR(VLOOKUP(A122,Hoja4!$D$2:$E$166,2,0),0) -> 0
A123: 1502 | B123: =IFERROR(VLOOKUP(A123,Hoja4!$A$2:$B$163,2,0),0) -> 0 | C123: =IFERROR(VLOOKUP(A123,Hoja4!$D$2:$E$166,2,0),0) -> 0
A124: 1503 | B124: =IFERROR(VLOOKUP(A124,Hoja4!$A$2:$B$163,2,0),0) -> 0 | C124: =IFERROR(VLOOKUP(A124,Hoja4!$D$2:$E$166,2,0),0) -> 0
A125: 1504 | B125: =IFERROR(VLOOKUP(A125,Hoja4!$A$2:$B$163,2,0),0) -> 0 | C125: =IFERROR(VLOOKUP(A125,Hoja4!$D$2:$E$166,2,0),0) -> 0
A126: 1505 | B126: =IFERROR(VLOOKUP(A126,Hoja4!$A$2:$B$163,2,0),0) -> 0 | C126: =IFERROR(VLOOKUP(A126,Hoja4!$D$2:$E$166,2,0),0) -> 0
A127: 1506 | B127: =IFERROR(VLOOKUP(A127,Hoja4!$A$2:$B$163,2,0),0) -> 0 | C127: =IFERROR(VLOOKUP(A127,Hoja4!$D$2:$E$166,2,0),0) -> 0
A128: 1507 | B128: =IFERROR(VLOOKUP(A128,Hoja4!$A$2:$B$163,2,0),0) -> 0 | C128: =IFERROR(VLOOKUP(A128,Hoja4!$D$2:$E$166,2,0),0) -> 0
A129: 1509 | B129: =IFERROR(VLOOKUP(A129,Hoja4!$A$2:$B$163,2,0),0) -> 0 | C129: =IFERROR(VLOOKUP(A129,Hoja4!$D$2:$E$166,2,0),0) -> 0
A130: 1511 | B130: =IFERROR(VLOOKUP(A130,Hoja4!$A$2:$B$163,2,0),0) -> 0 | C130: =IFERROR(VLOOKUP(A130,Hoja4!$D$2:$E$166,2,0),0) -> 0
A131: 1513 | B131: =IFERROR(VLOOKUP(A131,Hoja4!$A$2:$B$163,2,0),0) -> 0 | C131: =IFERROR(VLOOKUP(A131,Hoja4!$D$2:$E$166,2,0),0) -> 0
A132: 1516 | B132: =IFERROR(VLOOKUP(A132,Hoja4!$A$2:$B$163,2,0),0) -> 0 | C132: =IFERROR(VLOOKUP(A132,Hoja4!$D$2:$E$166,2,0),0) -> 0
A133: 1518 | B133: =IFERROR(VLOOKUP(A133,Hoja4!$A$2:$B$163,2,0),0) -> 0 | C133: =IFERROR(VLOOKUP(A133,Hoja4!$D$2:$E$166,2,0),0) -> 0
A134: 1519 | B134: =IFERROR(VLOOKUP(A134,Hoja4!$A$2:$B$163,2,0),0) -> 0 | C134: =IFERROR(VLOOKUP(A134,Hoja4!$D$2:$E$166,2,0),0) -> 0
A135: 1520 | B135: =IFERROR(VLOOKUP(A135,Hoja4!$A$2:$B$163,2,0),0) -> 0 | C135: =IFERROR(VLOOKUP(A135,Hoja4!$D$2:$E$166,2,0),0) -> 0
A136: 1521 | B136: =IFERROR(VLOOKUP(A136,Hoja4!$A$2:$B$163,2,0),0) -> 0 | C136: =IFERROR(VLOOKUP(A136,Hoja4!$D$2:$E$166,2,0),0) -> 0
A137: 1522 | B137: =IFERROR(VLOOKUP(A137,Hoja4!$A$2:$B$163,2,0),0) -> 0 | C137: =IFERROR(VLOOKUP(A137,Hoja4!$D$2:$E$166,2,0),0) -> 0
A138: 1524 | B138: =IFERROR(VLOOKUP(A138,Hoja4!$A$2:$B$163,2,0),0) -> 0 | C138: =IFERROR(VLOOKUP(A138,Hoja4!$D$2:$E$166,2,0),0) -> 0
A139: 1526 | B139: =IFERROR(VLOOKUP(A139,Hoja4!$A$2:$B$163,2,0),0) -> 0 | C139: =IFERROR(VLOOKUP(A139,Hoja4!$D$2:$E$166,2,0),0) -> 0
A140: 1527 | B140: =IFERROR(VLOOKUP(A140,Hoja4!$A$2:$B$163,2,0),0) -> 0 | C140: =IFERROR(VLOOKUP(A140,Hoja4!$D$2:$E$166,2,0),0) -> 0
A141: 1528 | B141: =IFERROR(VLOOKUP(A141,Hoja4!$A$2:$B$163,2,0),0) -> 0 | C141: =IFERROR(VLOOKUP(A141,Hoja4!$D$2:$E$166,2,0),0) -> 0
A142: 1667 | B142: =IFERROR(VLOOKUP(A142,Hoja4!$A$2:$B$163,2,0),0) -> 0 | C142: =IFERROR(VLOOKUP(A142,Hoja4!$D$2:$E$166,2,0),0) -> 0
A143: 1702 | B143: =IFERROR(VLOOKUP(A143,Hoja4!$A$2:$B$163,2,0),0) -> 0 | C143: =IFERROR(VLOOKUP(A143,Hoja4!$D$2:$E$166,2,0),0) -> 0
A144: 1710 | B144: =IFERROR(VLOOKUP(A144,Hoja4!$A$2:$B$163,2,0),0) -> 0 | C144: =IFERROR(VLOOKUP(A144,Hoja4!$D$2:$E$166,2,0),0) -> 68.657
A145: 1713 | B145: =IFERROR(VLOOKUP(A145,Hoja4!$A$2:$B$163,2,0),0) -> 0 | C145: =IFERROR(VLOOKUP(A145,Hoja4!$D$2:$E$166,2,0),0) -> 0
A146: 1714 | B146: =IFERROR(VLOOKUP(A146,Hoja4!$A$2:$B$163,2,0),0) -> 0 | C146: =IFERROR(VLOOKUP(A146,Hoja4!$D$2:$E$166,2,0),0) -> 0
A147: 1715 | B147: =IFERROR(VLOOKUP(A147,Hoja4!$A$2:$B$163,2,0),0) -> 0 | C147: =IFERROR(VLOOKUP(A147,Hoja4!$D$2:$E$166,2,0),0) -> 0
A148: 1718 | B148: =IFERROR(VLOOKUP(A148,Hoja4!$A$2:$B$163,2,0),0) -> 0 | C148: =IFERROR(VLOOKUP(A148,Hoja4!$D$2:$E$166,2,0),0) -> 0
A149: 1719 | B149: =IFERROR(VLOOKUP(A149,Hoja4!$A$2:$B$163,2,0),0) -> 0 | C149: =IFERROR(VLOOKUP(A149,Hoja4!$D$2:$E$166,2,0),0) -> 0
A150: 1730 | B150: =IFERROR(VLOOKUP(A150,Hoja4!$A$2:$B$163,2,0),0) -> 0 | C150: =IFERROR(VLOOKUP(A150,Hoja4!$D$2:$E$166,2,0),0) -> 0
A151: 1732 | B151: =IFERROR(VLOOKUP(A151,Hoja4!$A$2:$B$163,2,0),0) -> 0 | C151: =IFERROR(VLOOKUP(A151,Hoja4!$D$2:$E$166,2,0),0) -> 0
A152: 1735 | B152: =IFERROR(VLOOKUP(A152,Hoja4!$A$2:$B$163,2,0),0) -> 0 | C152: =IFERROR(VLOOKUP(A152,Hoja4!$D$2:$E$166,2,0),0) -> 0
A153: 1736 | B153: =IFERROR(VLOOKUP(A153,Hoja4!$A$2:$B$163,2,0),0) -> 0 | C153: =IFERROR(VLOOKUP(A153,Hoja4!$D$2:$E$166,2,0),0) -> 0
A154: 1755 | B154: =IFERROR(VLOOKUP(A154,Hoja4!$A$2:$B$163,2,0),0) -> 0 | C154: =IFERROR(VLOOKUP(A154,Hoja4!$D$2:$E$166,2,0),0) -> 0
A155: 1758 | B155: =IFERROR(VLOOKUP(A155,Hoja4!$A$2:$B$163,2,0),0) -> 0 | C155: =IFERROR(VLOOKUP(A155,Hoja4!$D$2:$E$166,2,0),0) -> 0
A156: 1762 | B156: =IFERROR(VLOOKUP(A156,Hoja4!$A$2:$B$163,2,0),0) -> 0 | C156: =IFERROR(VLOOKUP(A156,Hoja4!$D$2:$E$166,2,0),0) -> 0
A157: 1764 | B157: =IFERROR(VLOOKUP(A157,Hoja4!$A$2:$B$163,2,0),0) -> 0 | C157: =IFERROR(VLOOKUP(A157,Hoja4!$D$2:$E$166,2,0),0) -> 0
A158: 1771 | B158: =IFERROR(VLOOKUP(A158,Hoja4!$A$2:$B$163,2,0),0) -> 0 | C158: =IFERROR(VLOOKUP(A158,Hoja4!$D$2:$E$166,2,0),0) -> 36.027
A159: 1772 | B159: =IFERROR(VLOOKUP(A159,Hoja4!$A$2:$B$163,2,0),0) -> 0 | C159: =IFERROR(VLOOKUP(A159,Hoja4!$D$2:$E$166,2,0),0) -> 0
A160: 1795 | B160: =IFERROR(VLOOKUP(A160,Hoja4!$A$2:$B$163,2,0),0) -> 0 | C160: =IFERROR(VLOOKUP(A160,Hoja4!$D$2:$E$166,2,0),0) -> 0
A161: 1810 | B161: =IFERROR(VLOOKUP(A161,Hoja4!$A$2:$B$163,2,0),0) -> 0 | C161: =IFERROR(VLOOKUP(A161,Hoja4!$D$2:$E$166,2,0),0) -> 0
A162: 1813 | B162: =IFERROR(VLOOKUP(A162,Hoja4!$A$2:$B$163,2,0),0) -> 0 | C162: =IFERROR(VLOOKUP(A162,Hoja4!$D$2:$E$166,2,0),0) -> 0
A163: 1816 | B163: =IFERROR(VLOOKUP(A163,Hoja4!$A$2:$B$163,2,0),0) -> 0 | C163: =IFERROR(VLOOKUP(A163,Hoja4!$D$2:$E$166,2,0),0) -> 0
A164: 1820 | B164: =IFERROR(VLOOKUP(A164,Hoja4!$A$2:$B$163,2,0),0) -> 0 | C164: =IFERROR(VLOOKUP(A164,Hoja4!$D$2:$E$166,2,0),0) -> 0
A165: 1821 | B165: =IFERROR(VLOOKUP(A165,Hoja4!$A$2:$B$163,2,0),0) -> 0 | C165: =IFERROR(VLOOKUP(A165,Hoja4!$D$2:$E$166,2,0),0) -> 0
A166: 1822 | B166: =IFERROR(VLOOKUP(A166,Hoja4!$A$2:$B$163,2,0),0) -> 0 | C166: =IFERROR(VLOOKUP(A166,Hoja4!$D$2:$E$166,2,0),0) -> 0
A167: 1823 | B167: =IFERROR(VLOOKUP(A167,Hoja4!$A$2:$B$163,2,0),0) -> 0 | C167: =IFERROR(VLOOKUP(A167,Hoja4!$D$2:$E$166,2,0),0) -> 0
A168: 1828 | B168: =IFERROR(VLOOKUP(A168,Hoja4!$A$2:$B$163,2,0),0) -> 0 | C168: =IFERROR(VLOOKUP(A168,Hoja4!$D$2:$E$166,2,0),0) -> 0
A169: 1832 | B169: =IFERROR(VLOOKUP(A169,Hoja4!$A$2:$B$163,2,0),0) -> 0 | C169: =IFERROR(VLOOKUP(A169,Hoja4!$D$2:$E$166,2,0),0) -> 0
A170: 1833 | B170: =IFERROR(VLOOKUP(A170,Hoja4!$A$2:$B$163,2,0),0) -> 0 | C170: =IFERROR(VLOOKUP(A170,Hoja4!$D$2:$E$166,2,0),0) -> 0
A171: 1835 | B171: =IFERROR(VLOOKUP(A171,Hoja4!$A$2:$B$163,2,0),0) -> 0 | C171: =IFERROR(VLOOKUP(A171,Hoja4!$D$2:$E$166,2,0),0) -> 0
A172: 1840 | B172: =IFERROR(VLOOKUP(A172,Hoja4!$A$2:$B$163,2,0),0) -> 33.026 | C172: =IFERROR(VLOOKUP(A172,Hoja4!$D$2:$E$166,2,0),0) -> 32.68
A173: 1841 | B173: =IFERROR(VLOOKUP(A173,Hoja4!$A$2:$B$163,2,0),0) -> 0 | C173: =IFERROR(VLOOKUP(A173,Hoja4!$D$2:$E$166,2,0),0) -> 0
A174: 1842 | B174: =IFERROR(VLOOKUP(A174,Hoja4!$A$2:$B$163,2,0),0) -> 0 | C174: =IFERROR(VLOOKUP(A174,Hoja4!$D$2:$E$166,2,0),0) -> 0
A175: 1845 | B175: =IFERROR(VLOOKUP(A175,Hoja4!$A$2:$B$163,2,0),0) -> 0 | C175: =IFERROR(VLOOKUP(A175,Hoja4!$D$2:$E$166,2,0),0) -> 0
A176: 1846 | B176: =IFERROR(VLOOKUP(A176,Hoja4!$A$2:$B$163,2,0),0) -> 0 | C176: =IFERROR(VLOOKUP(A176,Hoja4!$D$2:$E$166,2,0),0) -> 0
A177: 1857 | B177: =IFERROR(VLOOKUP(A177,Hoja4!$A$2:$B$163,2,0),0) -> 0 | C177: =IFERROR(VLOOKUP(A177,Hoja4!$D$2:$E$166,2,0),0) -> 0
A178: 1862 | B178: =IFERROR(VLOOKUP(A178,Hoja4!$A$2:$B$163,2,0),0) -> 0 | C178: =IFERROR(VLOOKUP(A178,Hoja4!$D$2:$E$166,2,0),0) -> 0
A179: 1863 | B179: =IFERROR(VLOOKUP(A179,Hoja4!$A$2:$B$163,2,0),0) -> 0 | C179: =IFERROR(VLOOKUP(A179,Hoja4!$D$2:$E$166,2,0),0) -> 0
A180: 1869 | B180: =IFERROR(VLOOKUP(A180,Hoja4!$A$2:$B$163,2,0),0) -> 0 | C180: =IFERROR(VLOOKUP(A180,Hoja4!$D$2:$E$166,2,0),0) -> 0
A181: 1908 | B181: =IFERROR(VLOOKUP(A181,Hoja4!$A$2:$B$163,2,0),0) -> 0 | C181: =IFERROR(VLOOKUP(A181,Hoja4!$D$2:$E$166,2,0),0) -> 0
A182: 3029 | B182: =IFERROR(VLOOKUP(A182,Hoja4!$A$2:$B$163,2,0),0) -> 30.568 | C182: =IFERROR(VLOOKUP(A182,Hoja4!$D$2:$E$166,2,0),0) -> 40.0619
A183: 3030 | B183: =IFERROR(VLOOKUP(A183,Hoja4!$A$2:$B$163,2,0),0) -> 0 | C183: =IFERROR(VLOOKUP(A183,Hoja4!$D$2:$E$166,2,0),0) -> 37.3025
A184: 3031 | B184: =IFERROR(VLOOKUP(A184,Hoja4!$A$2:$B$163,2,0),0) -> 0 | C184: =IFERROR(VLOOKUP(A184,Hoja4!$D$2:$E$166,2,0),0) -> 19.9908
A185: 3032 | B185: =IFERROR(VLOOKUP(A185,Hoja4!$A$2:$B$163,2,0),0) -> 124.9973 | C185: =IFERROR(VLOOKUP(A185,Hoja4!$D$2:$E$166,2,0),0) -> 1.8548
A186: 3033 | B186: =IFERROR(VLOOKUP(A186,Hoja4!$A$2:$B$163,2,0),0) -> 0 | C186: =IFERROR(VLOOKUP(A186,Hoja4!$D$2:$E$166,2,0),0) -> 17.6208
A187: 3034 | B187: =IFERROR(VLOOKUP(A187,Hoja4!$A$2:$B$163,2,0),0) -> 99.774 | C187: =IFERROR(VLOOKUP(A187,Hoja4!$D$2:$E$166,2,0),0) -> 30.0327
A188: 3036 | B188: =IFERROR(VLOOKUP(A188,Hoja4!$A$2:$B$163,2,0),0) -> 0 | C188: =IFERROR(VLOOKUP(A188,Hoja4!$D$2:$E$166,2,0),0) -> 0
A189: 3037 | B189: =IFERROR(VLOOKUP(A189,Hoja4!$A$2:$B$163,2,0),0) -> 0 | C189: =IFERROR(VLOOKUP(A189,Hoja4!$D$2:$E$166,2,0),0) -> 60.2817
A190: 3038 | B190: =IFERROR(VLOOKUP(A190,Hoja4!$A$2:$B$163,2,0),0) -> 22.924 | C190: =IFERROR(VLOOKUP(A190,Hoja4!$D$2:$E$166,2,0),0) -> 23.1389
A191: 3040 | B191: =IFERROR(VLOOKUP(A191,Hoja4!$A$2:$B$163,2,0),0) -> 0 | C191: =IFERROR(VLOOKUP(A191,Hoja4!$D$2:$E$166,2,0),0) -> 11.232
A192: 3045 | B192: =IFERROR(VLOOKUP(A192,Hoja4!$A$2:$B$163,2,0),0) -> 0 | C192: =IFERROR(VLOOKUP(A192,Hoja4!$D$2:$E$166,2,0),0) -> 34.3142
A193: 3049 | B193: =IFERROR(VLOOKUP(A193,Hoja4!$A$2:$B$163,2,0),0) -> 0 | C193: =IFERROR(VLOOKUP(A193,Hoja4!$D$2:$E$166,2,0),0) -> 30.5015
A194: 3052 | B194: =IFERROR(VLOOKUP(A194,Hoja4!$A$2:$B$163,2,0),0) -> 0 | C194: =IFERROR(VLOOKUP(A194,Hoja4!$D$2:$E$166,2,0),0) -> 49.3588
A195: 3055 | B195: =IFERROR(VLOOKUP(A195,Hoja4!$A$2:$B$163,2,0),0) -> 21.172 | C195: =IFERROR(VLOOKUP(A195,Hoja4!$D$2:$E$166,2,0),0) -> 66.2251
A196: 3059 | B196: =IFERROR(VLOOKUP(A196,Hoja4!$A$2:$B$163,2,0),0) -> 0 | C196: =IFERROR(VLOOKUP(A196,Hoja4!$D$2:$E$166,2,0),0) -> 0
A197: 3060 | B197: =IFERROR(VLOOKUP(A197,Hoja4!$A$2:$B$163,2,0),0) -> 3.647 | C197: =IFERROR(VLOOKUP(A197,Hoja4!$D$2:$E$166,2,0),0) -> 35.5507
A198: 3064 | B198: =IFERROR(VLOOKUP(A198,Hoja4!$A$2:$B$163,2,0),0) -> 0 | C198: =IFERROR(VLOOKUP(A198,Hoja4!$D$2:$E$166,2,0),0) -> 3.3591
A199: 3075 | B199: =IFERROR(VLOOKUP(A199,Hoja4!$A$2:$B$163,2,0),0) -> 0 | C199: =IFERROR(VLOOKUP(A199,Hoja4!$D$2:$E$166,2,0),0) -> 15.4568
A200: 3077 | B200: =IFERROR(VLOOKUP(A200,Hoja4!$A$2:$B$163,2,0),0) -> 0 | C200: =IFERROR(VLOOKUP(A200,Hoja4!$D$2:$E$166,2,0),0) -> 36.8903
... 357 more rows

Sheet Hoja4
A1: Nodo | B1: Inyeccion | D1: Nodo | E1: Retiro
A2: 1101 | B2: 256.2479 | D2: 1102 | E2: 36.238
A3: 1102 | B3: 20.49 | D3: 1106 | E3: 36.291
A4: 1106 | B4: 0 | D4: 1107 | E4: 143.105
A5: 1107 | B5: 0 | D5: 1108 | E5: 155.583
A6: 1108 | B6: 0 | D6: 1109 | E6: 207.281
A7: 1109 | B7: 0 | D7: 1120 | E7: 0
A8: 1120 | B8: 17.418 | D8: 1124 | E8: 35.914
A9: 1124 | B9: 0 | D9: 1126 | E9: 50.213
A10: 1126 | B10: 0 | D10: 1133 | E10: 19.166
A11: 1133 | B11: 0 | D11: 1140 | E11: 35.988
A12: 1140 | B12: 127.8661 | D12: 1145 | E12: 0
A13: 1141 | B13: 228.58 | D13: 1165 | E13: 0
A14: 1145 | B14: 8.8626 | D14: 1166 | E14: 0
A15: 1165 | B15: 49.568 | D15: 1168 | E15: 0
A16: 1166 | B16: 0 | D16: 1219 | E16: 0
A17: 1168 | B17: 47.957 | D17: 1444 | E17: 21.9
A18: 1170 | B18: 2.1194 | D18: 1710 | E18: 68.657
A19: 1219 | B19: 68.571 | D19: 1771 | E19: 36.027
A20: 1444 | B20: 33.241 | D20: 1840 | E20: 32.68
A21: 1710 | B21: 0 | D21: 3029 | E21: 40.0619
A22: 1771 | B22: 0 | D22: 3030 | E22: 37.3025
A23: 1840 | B23: 33.026 | D23: 3031 | E23: 19.9908
A24: 1845 | B24: 0 | D24: 3032 | E24: 1.8548
A25: 3029 | B25: 30.568 | D25: 3033 | E25: 17.6208
A26: 3032 | B26: 124.9973 | D26: 3034 | E26: 30.0327
A27: 3034 | B27: 99.774 | D27: 3036 | E27: 0
A28: 3038 | B28: 22.924 | D28: 3037 | E28: 60.2817
A29: 3049 | B29: 0 | D29: 3038 | E29: 23.1389
A30: 3055 | B30: 21.172 | D30: 3040 | E30: 11.232
A31: 3059 | B31: 0 | D31: 3045 | E31: 34.3142
A32: 3060 | B32: 3.647 | D32: 3049 | E32: 30.5015
A33: 3078 | B33: 0 | D33: 3052 | E33: 49.3588
A34: 3082 | B34: 5.445 | D34: 3055 | E34: 66.2251
A35: 3098 | B35: 39 | D35: 3060 | E35: 35.5507
A36: 3100 | B36: 3.304 | D36: 3064 | E36: 3.3591
A37: 3101 | B37: 9.325 | D37: 3075 | E37: 15.4568
A38: 3123 | B38: 9.855 | D38: 3077 | E38: 36.8903
A39: 3180 | B39: 0.132 | D39: 3078 | E39: 61.8274
A40: 3183 | B40: 6.233 | D40: 3082 | E40: 8.3467
A41: 3203 | B41: 10.855 | D41: 3085 | E41: 30.1924
A42: 3204 | B42: 227 | D42: 3091 | E42: 10.6137
A43: 3211 | B43: 8 | D43: 3095 | E43: 29.0589
A44: 3213 | B44: 70 | D44: 3100 | E44: 27.8223
A45: 3219 | B45: 30 | D45: 3101 | E45: 62.6517
A46: 3301 | B46: 241 | D46: 3103 | E46: 14.1172
A47: 3424 | B47: 0 | D47: 3108 | E47: 17.2086
A48: 3544 | B48: 8 | D48: 3113 | E48: 18.5482
A49: 3550 | B49: 18 | D49: 3118 | E49: 8.7768
A50: 3553 | B50: 56 | D50: 3122 | E50: 13.8081
A51: 3592 | B51: 8 | D51: 3123 | E51: 51.4198
A52: 4300 | B52: 0 | D52: 3131 | E52: 8.4497
A53: 4307 | B53: 3.62 | D53: 3155 | E53: 24.3188
A54: 4315 | B54: 0 | D54: 3160 | E54: 17.6208
A55: 4316 | B55: 49.127 | D55: 3179 | E55: 10.0985
A56: 4317 | B56: 9.8572 | D56: 3180 | E56: 14.4264
A57: 4319 | B57: 0 | D57: 3183 | E57: 14.4492
A58: 4328 | B58: 22.8 | D58: 3310 | E58: 8.965
A59: 4329 | B59: 0 | D59: 3408 | E59: 20.1969
A60: 4330 | B60: 25.65 | D60: 3424 | E60: 21.6396
A61: 4331 | B61: 18.5233 | D61: 3553 | E61: 34.3657
A62: 4336 | B62: 47.489 | D62: 4300 | E62: 29.02
A63: 4341 | B63: 67 | D63: 4307 | E63: 4.34
A64: 4342 | B64: 0 | D64: 4315 | E64: 71.01
A65: 4402 | B65: 0 | D65: 4316 | E65: 31.764
A66: 4403 | B66: 0 | D66: 4317 | E66: 92.48
A67: 4405 | B67: 87.912 | D67: 4319 | E67: 41.48
A68: 4406 | B68: 0 | D68: 4328 | E68: 1.3125
A69: 4419 | B69: 64.1455 | D69: 4329 | E69: 0.14
A70: 4750 | B70: 36 | D70: 4330 | E70: 15.22
A71: 4800 | B71: 25.51 | D71: 4331 | E71: 63.48
A72: 4803 | B72: 25.16 | D72: 4336 | E72: 102.4
A73: 6003 | B73: 243.0521 | D73: 4341 | E73: 5.567
A74: 6005 | B74: 142.46 | D74: 4342 | E74: 5.54
A75: 6008 | B75: 157 | D75: 4357 | E75: 10.77
A76: 6009 | B76: 1.5483 | D76: 4402 | E76: 1.18
A77: 6010 | B77: 2.3941 | D77: 4403 | E77: 0
A78: 6011 | B78: 0 | D78: 4405 | E78: 0.62
A79: 6013 | B79: 12.7284 | D79: 4406 | E79: 0
A80: 6018 | B80: 0.36 | D80: 4419 | E80: 0.14
A81: 6059 | B81: 0 | D81: 4750 | E81: 0
A82: 6060 | B82: 0 | D82: 4800 | E82: 0.22
A83: 6088 | B83: 30.6901 | D83: 4803 | E83: 0
A84: 6092 | B84: 36.0531 | D84: 4827 | E84: 2.52
A85: 6096 | B85: 294.6927 | D85: 6002 | E85: 353.6043
A86: 6100 | B86: 0 | D86: 6004 | E86: 94.5952
A87: 6171 | B87: 0 | D87: 6007 | E87: 81.6118
A88: 6173 | B88: 0 | D88: 6009 | E88: 120.3363
A89: 6178 | B89: 40.5203 | D89: 6010 | E89: 9.2477
A90: 6240 | B90: 0 | D90: 6012 | E90: 6.7463
A91: 6261 | B91: 0 | D91: 6013 | E91: 67.2234
A92: 6263 | B92: 9.6405 | D92: 6015 | E92: 0.3472
A93: 6290 | B93: 0 | D93: 6016 | E93: 15.5433
A94: 6300 | B94: 20.0006 | D94: 6018 | E94: 157.9281
A95: 6330 | B95: 42.3728 | D95: 6024 | E95: 39.2197
A96: 6332 | B96: 0 | D96: 6059 | E96: 99.8854
A97: 6360 | B97: 7.3738 | D97: 6100 | E97: 0.7095
A98: 6363 | B98: 9.8757 | D98: 6170 | E98: 13.0928
A99: 6366 | B99: 15.2465 | D99: 6171 | E99: 13.7797
A100: 6381 | B100: 21.4572 | D100: 6241 | E100: 28.1879
A101: 6440 | B101: 53.039 | D101: 6262 | E101: 10.9974
A102: 6460 | B102: 18.18 | D102: 6340 | E102: 20.9438
A103: 6510 | B103: 38.3811 | D103: 6470 | E103: 29.3518
A104: 6520 | B104: 0 | D104: 6713 | E104: 19.1244
A105: 6550 | B105: 14.6696 | D105: 27131 | E105: 13.4
A106: 27101 | B106: 84.6 | D106: 27161 | E106: 13.7
A107: 27131 | B107: 124.2 | D107: 27171 | E107: 14.6
A108: 27161 | B108: 72.9968 | D108: 27181 | E108: 9.9
A109: 27171 | B109: 70.3 | D109: 27301 | E109: 75.3
A110: 27181 | B110: 64.3 | D110: 27321 | E110: 39.2
A111: 27211 | B111: 93.4 | D111: 27341 | E111: 69.9
A112: 27281 | B112: 0 | D112: 27351 | E112: 48.9
A113: 27301 | B113: -35 | D113: 27361 | E113: 57.7
A114: 27321 | B114: 0 | D114: 27371 | E114: 68.2
A115: 27341 | B115: 52.4 | D115: 27381 | E115: 11.9
A116: 27351 | B116: 11.1 | D116: 27401 | E116: 16.3
A117: 27361 | B117: 0 | D117: 27411 | E117: 17
A118: 27371 | B118: 0 | D118: 27441 | E118: 101.4
A119: 27381 | B119: 0 | D119: 27461 | E119: 50.3
A120: 27401 | B120: 6.3 | D120: 27501 | E120: 15.7
A121: 27411 | B121: 0 | D121: 50000 | E121: 35.8797
A122: 27441 | B122: 0 | D122: 50050 | E122: 13.7013
A123: 27461 | B123: -8.7 | D123: 50054 | E123: 41.3011
A124: 27481 | B124: 93.6 | D124: 50200 | E124: 12.8142
A125: 27501 | B125: 0 | D125: 50250 | E125: 12.7156
A126: 28161 | B126: 0 | D126: 50350 | E126: 39.1326
A127: 28181 | B127: 0 | D127: 50650 | E127: 24.7413
A128: 50050 | B128: 0 | D128: 50700 | E128: 2.2671
A129: 50054 | B129: 2.8362 | D129: 50750 | E129: 18.137
A130: 50100 | B130: 145.663 | D130: 50800 | E130: 5.2242
A131: 50103 | B131: 30.28 | D131: 50900 | E131: 0
A132: 50150 | B132: 54.529 | D132: 50950 | E132: 9.3642
A133: 50200 | B133: 152.5326 | D133: 51150 | E133: 0
A134: 50250 | B134: 156.7493 | D134: 51450 | E134: 21.6856
A135: 50300 | B135: 29.171 | D135: 53000 | E135: 125.6777
A136: 50350 | B136: 0 | D136: 53050 | E136: 41.3997
A137: 50650 | B137: 38.4501 | D137: 53150 | E137: 30.8526
A138: 50700 | B138: 22.4111 | D138: 53204 | E138: 14.0956
A139: 50750 | B139: 24.891 | D139: 53254 | E139: 36.6683
A140: 50800 | B140: 14.6651 | D140: 53304 | E140: 40.9069
A141: 50900 | B141: 1.4998 | D141: 53354 | E141: 39.6254
A142: 50950 | B142: 1.4004 | D142: 53404 | E142: 78.5609
A143: 51150 | B143: 138.612 | D143: 53454 | E143: 89.6994
A144: 51300 | B144: 10.7355 | D144: 53550 | E144: 27.2055
A145: 53000 | B145: 0.9998 | D145: 53604 | E145: 82.5037
A146: 53050 | B146: 18.3015 | D146: 53654 | E146: 78.3637
A147: 53200 | B147: 44.393 | D147: 53704 | E147: 50.8625
A148: 53204 | B148: 43.987 | D148: 53754 | E148: 73.4352
A149: 53254 | B149: 0.29 | D149: 53854 | E149: 11.0399
A150: 53304 | B150: 1.2501 | D150: 53900 | E150: 10.4485
A151: 53354 | B151: 0.9563 | D151: 54000 | E151: 16.9542
A152: 53754 | B152: 6.0412 | D152: 54050 | E152: 27.1069
A153: 53854 | B153: 8 | D153: 54104 | E153: 27.5012
A154: 54104 | B154: 6.6126 | D154: 54200 | E154: 8.8714
A155: 54250 | B155: 121.444 | D155: 54750 | E155: 31.9369
A156: 54500 | B156: 16.002 | D156: 56000 | E156: 33.8098
A157: 58004 | B157: 110.355 | D157: 56050 | E157: 22.6713
A158: 58054 | B158: 0.783 | D158: 56100 | E158: 6.0128
A159: 58104 | B159: 60 | D159: 58004 | E159: 7.0971
A160: 58200 | B160: 8.7992 | D160: 58054 | E160: 7.4914
A161: 58304 | B161: 0 | D161: 58104 | E161: 2.9571
A162: 58450 | B162: 20.227 | D162: 58150 | E162: 18.9256
A163: 58500 | B163: 76.352 | D163: 58200 | E163: 36.6683
D164: 58304 | E164: 27.6984
D165: 58350 | E165: 6.5057
D166: 28161 | E166: 0
B169: =SUM(B2:B165) -> 5640.4248 | E169: =SUM(E2:E166) -> 5556.735
E170: =B169-E169 -> 83.6898

Sheet oor
A1: N° | B1: Nodo Retiro | C1: Generador | D1: Precio bloque 1 | E1: MW Ofertados Bloque 1 | F1: Precio Ofertado Bloque 1 | G1: MW Ofertados Bloque 2 | H1: Precio Ofertado Bloque 2 | I1: MW Ofertados Bloque 3 | J1: Precio Ofertado Bloque 3 | K1: MW Ofertados Bloque 4 | L1: Precio Ofertado Bloque 4 | M1: MW Ofertados Bloque 5
A2: 1 | B2: 1124 | C2: 1 | D2: 61.87 | E2: 40 | F2: 0 | G2: 0 | H2: 0 | I2: 0 | J2: 0 | K2: 0 | L2: 0 | M2: 0
A3: 2 | B3: 27131 | C3: 1 | D3: 34.2 | E3: 20 | F3: 33.2 | G3: 20 | H3: 32.2 | I3: 10 | J3: 0 | K3: 0 | L3: 0 | M3: 0
A4: 3 | B4: 27131 | C4: 1 | D4: 35.06 | E4: 10 | F4: 34.99 | G4: 5 | H4: 0 | I4: 0 | J4: 0 | K4: 0 | L4: 0 | M4: 0
A5: 4 | B5: 27161 | C5: 1 | D5: 36.33 | E5: 25 | F5: 34.33 | G5: 10 | H5: 0 | I5: 0 | J5: 0 | K5: 0 | L5: 0 | M5: 0
A6: 5 | B6: 27211 | C6: 1 | D6: 25 | E6: 10 | F6: 20 | G6: 5 | H6: 10 | I6: 5 | J6: 0 | K6: 0 | L6: 0 | M6: 0
A7: 6 | B7: 27211 | C7: 1 | D7: 32.51 | E7: 7.5 | F7: 31.64 | G7: 7.5 | H7: 1 | I7: 5 | J7: 0 | K7: 0 | L7: 0 | M7: 0
A8: 7 | B8: 27211 | C8: 1 | D8: 35.06 | E8: 10 | F8: 34.99 | G8: 5 | H8: 0 | I8: 0 | J8: 0 | K8: 0 | L8: 0 | M8: 0
A9: 8 | B9: 28161 | C9: 1 | D9: 32.81 | E9: 5 | F9: 0 | G9: 0 | H9: 0 | I9: 0 | J9: 0 | K9: 0 | L9: 0 | M9: 0
A10: 9 | B10: 28161 | C10: 1 | D10: 35.15 | E10: 30 | F10: 34.15 | G10: 15 | H10: 0 | I10: 0 | J10: 0 | K10: 0 | L10: 0 | M10: 0
A11: 10 | B11: 28161 | C11: 1 | D11: 35 | E11: 10 | F11: 0 | G11: 0 | H11: 0 | I11: 0 | J11: 0 | K11: 0 | L11: 0 | M11: 0
A12: 11 | B12: 28181 | C12: 1 | D12: 32.81 | E12: 5 | F12: 0 | G12: 0 | H12: 0 | I12: 0 | J12: 0 | K12: 0 | L12: 0 | M12: 0
A13: 12 | B13: 28181 | C13: 1 | D13: 1 | E13: 0.984 | F13: 0 | G13: 0 | H13: 0 | I13: 0 | J13: 0 | K13: 0 | L13: 0 | M13: 0
A14: 13 | B14: 3034 | C14: 1 | D14: 50 | E14: 25 | F14: 0 | G14: 0 | H14: 0 | I14: 0 | J14: 0 | K14: 0 | L14: 0 | M14: 0
A15: 14 | B15: 3310 | C15: 1 | D15: 50 | E15: 25 | F15: 0 | G15: 0 | H15: 0 | I15: 0 | J15: 0 | K15: 0 | L15: 0 | M15: 0
A16: 15 | B16: 4402 | C16: 1 | D16: 50 | E16: 2 | F16: 0 | G16: 0 | H16: 0 | I16: 0 | J16: 0 | K16: 0 | L16: 0 | M16: 0
A17: 16 | B17: 4403 | C17: 1 | D17: 53 | E17: 9.2 | F17: 0 | G17: 0 | H17: 0 | I17: 0 | J17: 0 | K17: 0 | L17: 0 | M17: 0
A18: 17 | B18: 4403 | C18: 1 | D18: 53 | E18: 3.2 | F18: 0 | G18: 0 | H18: 0 | I18: 0 | J18: 0 | K18: 0 | L18: 0 | M18: 0
A19: 18 | B19: 6096 | C19: 1 | D19: 37.05 | E19: 210 | F19: 0 | G19: 0 | H19: 0 | I19: 0 | J19: 0 | K19: 0 | L19: 0 | M19: 0

Sheet ooi
A1: N° | B1: Nodo Inyeccion | C1: Generador | D1: Precio bloque 1 | E1: MW Ofertados Bloque 1 | F1: Precio Ofertado Bloque 1 | G1: MW Ofertados Bloque 2 | H1: Precio Ofertado Bloque 2 | I1: MW Ofertados Bloque 3 | J1: Precio Ofertado Bloque 3 | K1: MW Ofertados Bloque 4 | L1: Precio Ofertado Bloque 4 | M1: MW Ofertados Bloque 5
A2: 1 | B2: 1124 | C2: 1 | D2: 259 | E2: 23.47 | F2: 0 | G2: 0 | H2: 0 | I2: 0 | J2: 0 | K2: 0 | L2: 0 | M2: 0
A3: 2 | B3: 1124 | C3: 1 | D3: 340.51 | E3: 37.455 | F3: 0 | G3: 0 | H3: 0 | I3: 0 | J3: 0 | K3: 0 | L3: 0 | M3: 0
A4: 3 | B4: 1124 | C4: 1 | D4: 145 | E4: 93.84 | F4: 0 | G4: 0 | H4: 0 | I4: 0 | J4: 0 | K4: 0 | L4: 0 | M4: 0
A5: 4 | B5: 1124 | C5: 1 | D5: 209.08 | E5: 22.389 | F5: 0 | G5: 0 | H5: 0 | I5: 0 | J5: 0 | K5: 0 | L5: 0 | M5: 0
A6: 5 | B6: 1126 | C6: 1 | D6: 198 | E6: 16.568 | F6: 0 | G6: 0 | H6: 0 | I6: 0 | J6: 0 | K6: 0 | L6: 0 | M6: 0
A7: 6 | B7: 1126 | C7: 1 | D7: 76.48 | E7: 0.538 | F7: 0 | G7: 0 | H7: 0 | I7: 0 | J7: 0 | K7: 0 | L7: 0 | M7: 0
A8: 7 | B8: 1710 | C8: 1 | D8: 88 | E8: 1.33 | F8: 0 | G8: 0 | H8: 0 | I8: 0 | J8: 0 | K8: 0 | L8: 0 | M8: 0
A9: 8 | B9: 1710 | C9: 1 | D9: 65 | E9: 1.2 | F9: 0 | G9: 0 | H9: 0 | I9: 0 | J9: 0 | K9: 0 | L9: 0 | M9: 0
A10: 10 | B10: 1710 | C10: 1 | D10: 88 | E10: 1.32 | F10: 0 | G10: 0 | H10: 0 | I10: 0 | J10: 0 | K10: 0 | L10: 0 | M10: 0
A11: 11 | B11: 1710 | C11: 1 | D11: 71 | E11: 1.1 | F11: 0 | G11: 0 | H11: 0 | I11: 0 | J11: 0 | K11: 0 | L11: 0 | M11: 0
A12: 12 | B12: 1710 | C12: 1 | D12: 65 | E12: 2.905 | F12: 0 | G12: 0 | H12: 0 | I12: 0 | J12: 0 | K12: 0 | L12: 0 | M12: 0
A13: 13 | B13: 1710 | C13: 1 | D13: 76.48 | E13: 4.537 | F13: 0 | G13: 0 | H13: 0 | I13: 0 | J13: 0 | K13: 0 | L13: 0 | M13: 0
A14: 14 | B14: 1710 | C14: 1 | D14: 65 | E14: 15.26 | F14: 0 | G14: 0 | H14: 0 | I14: 0 | J14: 0 | K14: 0 | L14: 0 | M14: 0
A15: 15 | B15: 27161 | C15: 1 | D15: 54.17 | E15: 5 | F15: 59.17 | G15: 5 | H15: 0 | I15: 0 | J15: 0 | K15: 0 | L15: 0 | M15: 0
A16: 16 | B16: 27301 | C16: 1 | D16: 51 | E16: 10 | F16: 56 | G16: 5 | H16: 61 | I16: 10 | J16: 0 | K16: 0 | L16: 0 | M16: 0
A17: 17 | B17: 27301 | C17: 1 | D17: 58.99 | E17: 15 | F17: 0 | G17: 0 | H17: 0 | I17: 0 | J17: 0 | K17: 0 | L17: 0 | M17: 0
A18: 18 | B18: 27301 | C18: 1 | D18: 52.3 | E18: 15 | F18: 54 | G18: 10 | H18: 0 | I18: 0 | J18: 0 | K18: 0 | L18: 0 | M18: 0
A19: 19 | B19: 27301 | C19: 1 | D19: 50.67 | E19: 8 | F19: 51.5 | G19: 5 | H19: 52 | I19: 5 | J19: 0 | K19: 0 | L19: 0 | M19: 0
A20: 20 | B20: 27461 | C20: 1 | D20: 54.14 | E20: 20 | F20: 55.14 | G20: 20 | H20: 56.14 | I20: 10 | J20: 57.14 | K20: 20 | L20: 0 | M20: 0
A21: 21 | B21: 27461 | C21: 1 | D21: 54.75 | E21: 7.5 | F21: 57.35 | G21: 7.5 | H21: 0 | I21: 0 | J21: 0 | K21: 0 | L21: 0 | M21: 0
A22: 22 | B22: 28161 | C22: 1 | D22: 53.1 | E22: 3 | F22: 0 | G22: 0 | H22: 0 | I22: 0 | J22: 0 | K22: 0 | L22: 0 | M22: 0
A23: 23 | B23: 28161 | C23: 1 | D23: 57.04 | E23: 17 | F23: 59.04 | G23: 5 | H23: 0 | I23: 0 | J23: 0 | K23: 0 | L23: 0 | M23: 0
A24: 24 | B24: 28181 | C24: 1 | D24: 53.1 | E24: 10 | F24: 0 | G24: 0 | H24: 0 | I24: 0 | J24: 0 | K24: 0 | L24: 0 | M24: 0
A25: 25 | B25: 28181 | C25: 1 | D25: 58.85 | E25: 5 | F25: 0 | G25: 0 | H25: 0 | I25: 0 | J25: 0 | K25: 0 | L25: 0 | M25: 0
A26: 26 | B26: 28181 | C26: 1 | D26: 57.04 | E26: 17 | F26: 59.04 | G26: 5 | H26: 0 | I26: 0 | J26: 0 | K26: 0 | L26: 0 | M26: 0
A27: 27 | B27: 50350 | C27: 1 | D27: 196 | E27: 9 | F27: 0 | G27: 0 | H27: 0 | I27: 0 | J27: 0 | K27: 0 | L27: 0 | M27: 0
A28: 28 | B28: 50900 | C28: 1 | D28: 190 | E28: 106 | F28: 0 | G28: 0 | H28: 0 | I28: 0 | J28: 0 | K28: 0 | L28: 0 | M28: 0
A29: 29 | B29: 58200 | C29: 1 | D29: 208 | E29: 13 | F29: 0 | G29: 0 | H29: 0 | I29: 0 | J29: 0 | K29: 0 | L29: 0 | M29: 0
A30: 30 | B30: 6003 | C30: 1 | D30: 63.12 | E30: 13.951 | F30: 0 | G30: 0 | H30: 0 | I30: 0 | J30: 0 | K30: 0 | L30: 0 | M30: 0
A31: 31 | B31: 6003 | C31: 1 | D31: 63.12 | E31: 13.951 | F31: 0 | G31: 0 | H31: 0 | I31: 0 | J31: 0 | K31: 0 | L31: 0 | M31: 0
A32: 32 | B32: 6003 | C32: 1 | D32: 63.12 | E32: 13.951 | F32: 0 | G32: 0 | H32: 0 | I32: 0 | J32: 0 | K32: 0 | L32: 0 | M32: 0
A33: 33 | B33: 6003 | C33: 1 | D33: 63.12 | E33: 13.951 | F33: 0 | G33: 0 | H33: 0 | I33: 0 | J33: 0 | K33: 0 | L33: 0 | M33: 0
A34: 34 | B34: 6003 | C34: 1 | D34: 63.12 | E34: 13.951 | F34: 0 | G34: 0 | H34: 0 | I34: 0 | J34: 0 | K34: 0 | L34: 0 | M34: 0
A35: 35 | B35: 6018 | C35: 1 | D35: 354.87 | E35: 14.345 | F35: 0 | G35: 0 | H35: 0 | I35: 0 | J35: 0 | K35: 0 | L35: 0 | M35: 0
A36: 36 | B36: 6059 | C36: 1 | D36: 258.23 | E36: 31.198 | F36: 0 | G36: 0 | H36: 0 | I36: 0 | J36: 0 | K36: 0 | L36: 0 | M36: 0
A37: 37 | B37: 6059 | C37: 1 | D37: 270.25 | E37: 26.619 | F37: 0 | G37: 0 | H37: 0 | I37: 0 | J37: 0 | K37: 0 | L37: 0 | M37: 0
A38: 38 | B38: 6059 | C38: 1 | D38: 84.21 | E38: 13.68 | F38: 0 | G38: 0 | H38: 0 | I38: 0 | J38: 0 | K38: 0 | L38: 0 | M38: 0
A39: 39 | B39: 6059 | C39: 1 | D39: 84.21 | E39: 13.68 | F39: 0 | G39: 0 | H39: 0 | I39: 0 | J39: 0 | K39: 0 | L39: 0 | M39: 0
A40: 40 | B40: 6059 | C40: 1 | D40: 84.21 | E40: 13.68 | F40: 0 | G40: 0 | H40: 0 | I40: 0 | J40: 0 | K40: 0 | L40: 0 | M40: 0
A41: 41 | B41: 6059 | C41: 1 | D41: 135.59 | E41: 17.48 | F41: 0 | G41: 0 | H41: 0 | I41: 0 | J41: 0 | K41: 0 | L41: 0 | M41: 0
A42: 42 | B42: 6059 | C42: 1 | D42: 135.59 | E42: 17.48 | F42: 0 | G42: 0 | H42: 0 | I42: 0 | J42: 0 | K42: 0 | L42: 0 | M42: 0
A43: 43 | B43: 6059 | C43: 1 | D43: 135.59 | E43: 17.48 | F43: 0 | G43: 0 | H43: 0 | I43: 0 | J43: 0 | K43: 0 | L43: 0 | M43: 0
A44: 44 | B44: 6059 | C44: 1 | D44: 135.59 | E44: 17.48 | F44: 0 | G44: 0 | H44: 0 | I44: 0 | J44: 0 | K44: 0 | L44: 0 | M44: 0
A45: 45 | B45: 6059 | C45: 1 | D45: 84.21 | E45: 13.68 | F45: 0 | G45: 0 | H45: 0 | I45: 0 | J45: 0 | K45: 0 | L45: 0 | M45: 0
A46: 46 | B46: 6059 | C46: 1 | D46: 135.59 | E46: 17.48 | F46: 0 | G46: 0 | H46: 0 | I46: 0 | J46: 0 | K46: 0 | L46: 0 | M46: 0
A47: 47 | B47: 6059 | C47: 1 | D47: 84.21 | E47: 13.68 | F47: 0 | G47: 0 | H47: 0 | I47: 0 | J47: 0 | K47: 0 | L47: 0 | M47: 0
A48: 48 | B48: 6100 | C48: 1 | D48: 44.93 | E48: 37.159 | F48: 0 | G48: 0 | H48: 0 | I48: 0 | J48: 0 | K48: 0 | L48: 0 | M48: 0
A49: 49 | B49: 6100 | C49: 1 | D49: 44.93 | E49: 37.159 | F49: 0 | G49: 0 | H49: 0 | I49: 0 | J49: 0 | K49: 0 | L49: 0 | M49: 0
A50: 50 | B50: 6100 | C50: 1 | D50: 44.93 | E50: 37.159 | F50: 0 | G50: 0 | H50: 0 | I50: 0 | J50: 0 | K50: 0 | L50: 0 | M50: 0
A51: 51 | B51: 6100 | C51: 1 | D51: 44.93 | E51: 37.159 | F51: 0 | G51: 0 | H51: 0 | I51: 0 | J51: 0 | K51: 0 | L51: 0 | M51: 0
A52: 52 | B52: 6100 | C52: 1 | D52: 44.93 | E52: 37.159 | F52: 0 | G52: 0 | H52: 0 | I52: 0 | J52: 0 | K52: 0 | L52: 0 | M52: 0
A53: 53 | B53: 6171 | C53: 1 | D53: 77.62 | E53: 10.168 | F53: 0 | G53: 0 | H53: 0 | I53: 0 | J53: 0 | K53: 0 | L53: 0 | M53: 0
A54: 54 | B54: 6171 | C54: 1 | D54: 77.62 | E54: 10.168 | F54: 0 | G54: 0 | H54: 0 | I54: 0 | J54: 0 | K54: 0 | L54: 0 | M54: 0
A55: 55 | B55: 6171 | C55: 1 | D55: 77.62 | E55: 10.168 | F55: 0 | G55: 0 | H55: 0 | I55: 0 | J55: 0 | K55: 0 | L55: 0 | M55: 0
A56: 56 | B56: 6171 | C56: 1 | D56: 77.62 | E56: 10.168 | F56: 0 | G56: 0 | H56: 0 | I56: 0 | J56: 0 | K56: 0 | L56: 0 | M56: 0
A57: 57 | B57: 6171 | C57: 1 | D57: 77.62 | E57: 10.168 | F57: 0 | G57: 0 | H57: 0 | I57: 0 | J57: 0 | K57: 0 | L57: 0 | M57: 0
A58: 58 | B58: 6173 | C58: 1 | D58: 84.16 | E58: 10.636 | F58: 0 | G58: 0 | H58: 0 | I58: 0 | J58: 0 | K58: 0 | L58: 0 | M58: 0
A59: 59 | B59: 6173 | C59: 1 | D59: 84.16 | E59: 10.636 | F59: 0 | G59: 0 | H59: 0 | I59: 0 | J59: 0 | K59: 0 | L59: 0 | M59: 0
A60: 60 | B60: 6173 | C60: 1 | D60: 84.16 | E60: 10.636 | F60: 0 | G60: 0 | H60: 0 | I60: 0 | J60: 0 | K60: 0 | L60: 0 | M60: 0
A61: 61 | B61: 6173 | C61: 1 | D61: 84.16 | E61: 10.636 | F61: 0 | G61: 0 | H61: 0 | I61: 0 | J61: 0 | K61: 0 | L61: 0 | M61: 0
A62: 62 | B62: 6173 | C62: 1 | D62: 84.16 | E62: 10.636 | F62: 0 | G62: 0 | H62: 0 | I62: 0 | J62: 0 | K62: 0 | L62: 0 | M62: 0
A63: 63 | B63: 6290 | C63: 1 | D63: 245.29 | E63: 46.483 | F63: 0 | G63: 0 | H63: 0 | I63: 0 | J63: 0 | K63: 0 | L63: 0 | M63: 0
A64: 64 | B64: 6290 | C64: 1 | D64: 249.15 | E64: 46.113 | F64: 0 | G64: 0 | H64: 0 | I64: 0 | J64: 0 | K64: 0 | L64: 0 | M64: 0

Sheet cf
A1: N° | B1: Nodo Inyeccion | C1: Generador | D1: Nodo Retiro | E1: MW Energía Declarada | F1: MW Energía Requerida | G1: Precio Ofertado Bloque 1 | H1: MW Ofertados Bloque 1 | I1: Precio Ofertado Bloque 2 | J1: MW Ofertados Bloque 2 | K1: Precio Ofertado Bloque 3 | L1: MW Ofertados Bloque 3 | M1: Precio Ofertado Bloque 4 | N1: MW Ofertados Bloque 4 | O1: Precio Ofertado Bloque 5 | P1: MW Ofertados Bloque 5
A2: 1 | B2: 1710 | C2: 3_3183_005 | D2: 3183 | E2: 5.91 | F2: 5.91 | G2: 35 | H2: 5.91 | I2: 0 | J2: 0 | K2: 0 | L2: 0 | M2: 0 | N2: 0 | O2: 0 | P2: 0
A3: 2 | B3: 1124 | C3: 4_4403_119 | D3: 4403 | E3: 35 | F3: 35 | G3: 45.15 | H3: 35 | I3: 0 | J3: 0 | K3: 0 | L3: 0 | M3: 0 | N3: 0 | O3: 0 | P3: 0
A4: 3 | B4: 6005 | C4: 4_4750_005 | D4: 4750 | E4: 12 | F4: 12 | G4: 0 | H4: 12 | I4: 0 | J4: 0 | K4: 0 | L4: 0 | M4: 0 | N4: 0 | O4: 0 | P4: 0
A5: 4 | B5: 6008 | C5: 4_4750_136 | D5: 4750 | E5: 25 | F5: 25 | G5: 38 | H5: 25 | I5: 0 | J5: 0 | K5: 0 | L5: 0 | M5: 0 | N5: 0 | O5: 0 | P5: 0
A6: 5 | B6: 6008 | C6: 4_4750_129 | D6: 4750 | E6: 12 | F6: 12 | G6: 38 | H6: 12 | I6: 0 | J6: 0 | K6: 0 | L6: 0 | M6: 0 | N6: 0 | O6: 0 | P6: 0

Sheet cnfff
A1: N° | B1: nodo_i | C1: Generador | D1: nodo_r | E1: Energia declarada | F1: Precio_i bloque 1 | G1: Magnitud_i bloque 1 | H1: Precio_i bloque 2 | I1: Magnitud_i bloque 2 | J1: Precio_i bloque 3 | K1: Magnitud_i bloque 3 | L1: Precio_i bloque 4 | M1: Magnitud_i bloque 4 | N1: Precio_i bloque 5 | O1: Magnitud_i bloque 5 | P1: Precio_r bloque 1 | Q1: Magnitud_r bloque 1 | R1: Precio_i bloque r | S1: Magnitud_r bloque 2 | T1: Precio_r bloque 3 | U1: Magnitud_r bloque 3 | V1: Precio_r bloque 4 | W1: Magnitud_r bloque 4 | X1: Precio_r bloque 5 | Y1: Magnitud_r bloque 5 | Z1: k | AA1: Precio_max_cvt bloque 1 | AB1: Magnitud_max_cvt bloque 1 | AC1: Precio_max_cvt bloque 2 | AD1: Magnitud_max_cvt bloque 2 | AE1: Precio_max_cvt bloque 3 | AF1: Magnitud_max_cvt bloque 3 | AG1: Precio_max_cvt bloque 4 | AH1: Magnitud_max_cvt bloque 4 | AI1: Precio_max_cvt bloque 5 | AJ1: Magnitud_max_cvt bloque 5
A2: 1 | B2: 27301 | C2: 2_27301_190 | D2: 1124 | E2: 20 | F2: 0 | G2: 0 | H2: 0 | I2: 0 | J2: 0 | K2: 0 | L2: 0 | M2: 0 | N2: 0 | O2: 0 | P2: 60 | Q2: 20 | R2: 0 | S2: 0 | T2: 0 | U2: 0 | V2: 0 | W2: 0 | X2: 0 | Y2: 0 | Z2: 0 | AA2: 0.1 | AB2: 20 | AC2: 0 | AD2: 0 | AE2: 0 | AF2: 0 | AG2: 0 | AH2: 0 | AI2: 0 | AJ2: 0
A3: 2 | B3: 28161 | C3: 2_28161_660 | D3: 1124 | E3: 15 | F3: 0 | G3: 0 | H3: 0 | I3: 0 | J3: 0 | K3: 0 | L3: 0 | M3: 0 | N3: 0 | O3: 0 | P3: 60 | Q3: 15 | R3: 0 | S3: 0 | T3: 0 | U3: 0 | V3: 0 | W3: 0 | X3: 0 | Y3: 0 | Z3: 0 | AA3: 0.01 | AB3: 15 | AC3: 0 | AD3: 0 | AE3: 0 | AF3: 0 | AG3: 0 | AH3: 0 | AI3: 0 | AJ3: 0
A4: 3 | B4: 6018 | C4: 6_6018_195 | D4: 27301 | E4: 7.274 | F4: 40 | G4: 7.274 | H4: 0 | I4: 0 | J4: 0 | K4: 0 | L4: 0 | M4: 0 | N4: 0 | O4: 0 | P4: 0 | Q4: 0 | R4: 0 | S4: 0 | T4: 0 | U4: 0 | V4: 0 | W4: 0 | X4: 0 | Y4: 0 | Z4: 0 | AA4: 0.01 | AB4: 7.274 | AC4: 0 | AD4: 0 | AE4: 0 | AF4: 0 | AG4: 0 | AH4: 0 | AI4: 0 | AJ4: 0
A5: 4 | B5: 6100 | C5: 6_6100_061 | D5: 27301 | E5: 7.726 | F5: 40 | G5: 7.726 | H5: 0 | I5: 0 | J5: 0 | K5: 0 | L5: 0 | M5: 0 | N5: 0 | O5: 0 | P5: 0 | Q5: 0 | R5: 0 | S5: 0 | T5: 0 | U5: 0 | V5: 0 | W5: 0 | X5: 0 | Y5: 0 | Z5: 0 | AA5: 0.01 | AB5: 7.726 | AC5: 0 | AD5: 0 | AE5: 0 | AF5: 0 | AG5: 0 | AH5: 0 | AI5: 0 | AJ5: 0
A6: 5 | B6: 1710 | C6: 1_1710_898 | D6: 27401 | E6: 23 | F6: 122.39 | G6: 23 | H6: 0 | I6: 0 | J6: 0 | K6: 0 | L6: 0 | M6: 0 | N6: 0 | O6: 0 | P6: 37.3 | Q6: 23 | R6: 0 | S6: 0 | T6: 0 | U6: 0 | V6: 0 | W6: 0 | X6: 0 | Y6: 0 | Z6: 0 | AA6: 1 | AB6: 23 | AC6: 0 | AD6: 0 | AE6: 0 | AF6: 0 | AG6: 0 | AH6: 0 | AI6: 0 | AJ6: 0
A7: 6 | B7: 6100 | C7: 6_6100_013 | D7: 27461 | E7: 2.575 | F7: 43 | G7: =E7 -> 2.575 | H7: 0 | I7: 0 | J7: 0 | K7: 0 | L7: 0 | M7: 0 | N7: 0 | O7: 0 | P7: 0 | Q7: 0 | R7: 0 | S7: 0 | T7: 0 | U7: 0 | V7: 0 | W7: 0 | X7: 0 | Y7: 0 | Z7: 0 | AA7: 0.01 | AB7: 2.575 | AC7: 0 | AD7: 0 | AE7: 0 | AF7: 0 | AG7: 0 | AH7: 0 | AI7: 0 | AJ7: 0
A8: 7 | B8: 6018 | C8: 6_6018_205 | D8: 27461 | E8: 2.425 | F8: 43 | G8: =E8 -> 2.425 | H8: 0 | I8: 0 | J8: 0 | K8: 0 | L8: 0 | M8: 0 | N8: 0 | O8: 0 | P8: 0 | Q8: 0 | R8: 0 | S8: 0 | T8: 0 | U8: 0 | V8: 0 | W8: 0 | X8: 0 | Y8: 0 | Z8: 0 | AA8: 0.01 | AB8: 2.425 | AC8: 0 | AD8: 0 | AE8: 0 | AF8: 0 | AG8: 0 | AH8: 0 | AI8: 0 | AJ8: 0
A9: 8 | B9: 6018 | C9: 6_6018_206 | D9: 27461 | E9: 3.2 | F9: 43 | G9: 3.2 | H9: 0 | I9: 0 | J9: 0 | K9: 0 | L9: 0 | M9: 0 | N9: 0 | O9: 0 | P9: 0 | Q9: 0 | R9: 0 | S9: 0 | T9: 0 | U9: 0 | V9: 0 | W9: 0 | X9: 0 | Y9: 0 | Z9: 0 | AA9: 0.01 | AB9: 3.2 | AC9: 0 | AD9: 0 | AE9: 0 | AF9: 0 | AG9: 0 | AH9: 0 | AI9: 0 | AJ9: 0
A10: 9 | B10: 6100 | C10: 6_6100_014 | D10: 27461 | E10: 3.4 | F10: 43 | G10: 3.4 | H10: 0 | I10: 0 | J10: 0 | K10: 0 | L10: 0 | M10: 0 | N10: 0 | O10: 0 | P10: 0 | Q10: 0 | R10: 0 | S10: 0 | T10: 0 | U10: 0 | V10: 0 | W10: 0 | X10: 0 | Y10: 0 | Z10: 0 | AA10: 0.01 | AB10: 3.4 | AC10: 0 | AD10: 0 | AE10: 0 | AF10: 0 | AG10: 0 | AH10: 0 | AI10: 0 | AJ10: 0
